Workbook

Sheet Info
B3: Wichtiger Hinweis:
B4: Diese Excel-Tabelle darf nur für Ausbildungs- und Lehrzwecke verwendet werden!
B5: Obwohl ausführliche Testreihen erfolgten, kann die jederzeit einwandfreie Funktion nicht garantiert werden.
B6: In keinem Fall kann daher für die Nutzung dieser Tabelle eine Haftung übernommen werden.
B8: Nutzung:
B9: In den Tabellen dürfen nur grün hinterlegte Felder mit eigenen Werten versehen werden.
B10: Gelb hinterlegte Felder besitzen Formeln. Sie dürfen daher nicht verändert werden!
B12: © 2020 Welt der Fertigung

Sheet Zahnradberechnung
B2: Zahnradberechnung
B4: Stirnräder mit Geradverzahnung
B8: Außenverzahnung | G8: Innenverzahnung
B10: Modul m | D10: Wert | E10: Modul
B11: 1. Möglichkeit: | C11: Teilung P: | D11: 3.142 | E11: =D11/PI() -> 1.000129662
B12: 2. Möglichkeit: | C12: Teilkreisdurchmesser d: | D12: 120 | E12: =D12/D13 -> 1.5
C13: Zähnezahl z: | D13: 80
B15: Teilung p | D15: Wert | E15: Teilung
B16: Modul m: | D16: 5 | E16: =D16*PI() -> 15.70796327
B18: Zähnezahl z | D18: Wert | E18: Zähnezahl | G18: Zähnezahl Innen z | I18: Wert | J18: Zähnezahl
B19: 1. Möglichkeit | C19: Teilkreisdurchmesser d: | D19: 120 | E19: =D19/D20 -> 80 | G19: 1. Möglichkeit | H19: Teilkreisdurchmesser d: | I19: 120 | J19: =I19/I20 -> 80
C20: Modul m: | D20: 1.5 | H20: Modul m: | I20: 1.5
B21: 2. Möglichkeit | C21: Kopfkreisdurchmesser da: | D21: 117 | E21: =(D21-2*D22)/D22 -> 76 | G21: 2. Möglichkeit | H21: Kopfkreisdurchmesser da: | I21: 117 | J21: =(I21+J23*I22)/I22 -> 78
C22: Modul m: | D22: 1.5 | H22: Modul m: | I22: 1.5
B24: Kopfspiel c | D24: Wert | E24: Kopfspiel
B25: Faktor (0,1 bis 0,3): | D25: 0.167 | E25: =D25*D26 -> 0.2505
B26: Modul m: | D26: 1.5
B28: Zahnkopfhöhe ha=m | D28: Wert | E28: Zahnkopfhöhe
B29: Modul m: | D29: 1.5 | E29: =D29 -> 1.5
B31: Teilkreisdurchmesser d | D31: Wert | E31: Teilkreisdurchmesser
B32: 1.Möglichkeit | C32: Modul m: | D32: 2.5 | E32: =D32*D33 -> 90
C33: Zähnezahl z: | D33: 36
B34: 2. Möglichkeit | C34: Zähnezahl z: | D34: 24 | E34: =D34*D35/PI() -> 24.0031119
C35: Teilung p: | D35: 3.142
B37: Kopfkreisdurchmesser da | D37: Wert | E37: Kopfkreisdurchmesser | G37: Kopfkreisdurchmesser da Innen | I37: Wert | J37: Kopfkreisdurchmesser
B38: 1.Möglichkeit | C38: Teilkreisdurchmesser d: | D38: 120 | E38: =D38+2*D39 -> 123 | G38: 1.Möglichkeit | H38: Teilkreisdurchmesser d: | I38: 120 | J38: =I38-J41*I39 -> 120
C39: Modul m: | D39: 1.5 | H39: Modul m: | I39: 1.5
B40: 2.Möglichkeit | C40: Modul m: | D40: 1.5 | E40: =D40*(D41+2) -> 123 | G40: 2. Möglichkeit | H40: Zähnezahl z: | I40: 80 | J40: =I41*(I40-J42) -> 120
C41: Zähnezahl z: | D41: 80 | H41: Modul m: | I41: 1.5
B43: Fußkreisdurchmesser d1 | D43: Wert | E43: Fußkreisdurchmesser | G43: Fußkreisdurchmesser d1 Innen | I43: Wert | J43: Fußkreisdurchmesser
B44: Teilkreisdurchmesser d: | D44: 120 | E44: =D44-2*(D45+D46) -> 116 | G44: Teilkreisdurchmesser d: | I44: 120 | J44: =I44+J47*(I45+I46) -> 120
B45: Modul m: | D45: 1.5 | G45: Modul m: | I45: 1.5
B46: Kopfspiel c: | D46: 0.5 | G46: Kopfspiel c: | I46: 0.5
B48: Zahnhöhe h | D48: Wert | E48: Zahnhöhe
B49: Modul m: | D49: 1.5 | E49: =E51*D49+D50 -> 0.5
B50: Kopfspiel c: | D50: 0.5
B52: Zahnfußhöhe hf | D52: Wert | E52: Zahnfußhöhe
B53: Modul m: | D53: 1.5 | E53: =D53+D54 -> 2
B54: Kopfspiel c: | D54: 0.5
B56: Achsenabstand a mit Gegenrad außen | D56: Wert | E56: Achsenabstand
B57: 1. Möglichkeit | C57: Teilkreisdurchmesser 1: | D57: 120 | E57: =(D57+D58)/2 -> 100
C58: Teilkreisdurchmesser 2: | D58: 80
B59: 2. Möglichkeit | C59: Modul m: | D59: 2.5 | E59: =D59*(D61+D60)/2 -> 75
C60: Zähnezahl Zahnrad 1: | D60: 24
C61: Zähnezahl Zahnrad 2: | D61: 36
B63: Achsenabstand a mit Gegenrad innen | D63: Wert | E63: Achsenabstand
B64: 1. Möglichkeit | C64: Teilkreisdurchmesser 1: | D64: 80 | E64: =(D65-D64)/2 -> 20
C65: Teilkreisdurchmesser 2: | D65: 120
B66: 2. Möglichkeit | C66: Modul m: | D66: 1.5 | E66: =D66*(D67-D68)/2 -> 30
C67: Zähnezahl Zahnrad 1: | D67: 120
C68: Zähnezahl Zahnrad 2: | D68: 80

Sheet Zahnradberechnung_aussen
B2: Zahnradberechnung | E2: Außenverzahnung
B4: Stirnräder mit Geradverzahnung
B6: Gegeben: | C6: Modul m: | D6: 2
C7: Zähnezahl z1: | D7: 36
C8: Zähnezahl z2: | D8: 150
C9: Eingriffswinkel Alpha: | D9: 20
C10: Kopfspiel-Faktor (0,1 bis 0,3): | D10: 0.167
B12: Zähnezahl-berechnung: | C12: Kopfkreisdurchmesser 1 (da1): | D12: 117 | E12: =(D12+(2*D6))/D6 -> 60.5
C13: Kopfkreisdurchmesser 2 (da2): | D13: 100 | E13: =(D13+(2*D6))/D6 -> 52
C14: Teilkreisdurchmesser 1 (d1): | D14: 100 | E14: =D14/D6 -> 50
C15: Teilkreisdurchmesser 2 (d2): | D15: 150 | E15: =D15/D6 -> 75
B17: Modul-berechnung: | C17: Teilung p: | D17: 12.5663 | E17: =D17/PI() -> 3.999977523
C18: Teilkreisdurchmesser d1: | D18: =D14 -> 100 | E18: =D18/D7 -> 2.777777778
C19: Teilkreisdurchmesser d2: | D19: =D15 -> 150 | E19: =D19/D8 -> 1
B22: Ergebnisse
C25: Kopfspiel c | J25: Teilung p
C26: =D10*D6 -> 0.334 | J26: =D6*PI() -> 6.283185307
C29: Zahnkopfhöhe ha | J29: Übersetzung
C30: =D6 -> 2 | J30: =D18/D19 -> 0.6666666667
C32: Zahnhöhe h | J32: Teilkreisdurchmesser 1 (d1)
C33: =2*D6+C26 -> 4.334 | J33: =D6*D7 -> 72
C36: Zahnfußhöhe hf | J36: Teilkreisdurchmesser 2 (d2)
C37: =D6+C26 -> 2.334 | J37: =D6*D8 -> 300
C40: Achsenabstand a | J40: Messzähnezahl Zahnrad 1
C41: =(D18+D19)/2 -> 125 | J41: =(D7/180*ACOS(D7*COS(D9*PI()/180)/(D7+2*0.3))*180/PI()+0.5) -> 4.987758251
C44: Kopfkreisdurchmesser 1 (da1) | J44: Messzähnezahl Zahnrad 2
C45: =D18+2*D6 -> 104 | J45: =(D8/180*ACOS(D8*COS(D9*PI()/180)/(D8+2*0.3))*180/PI()+0.5) -> 17.68168426
C48: Kopfkreisdurchmesser 2 (da2) | J48: Zahnweite Zahnrad 1
C49: =D19+2*D6 -> 154 | J49: =D6*COS(D9*PI()/180)*((J41-0.5)*PI()+D7*(TAN(ATAN(TAN(D9*PI()/180)/COS(0))-ATAN(TAN(D9*PI()/180)/COS(0))+2*0.3*SIN(D9*PI()/180)))) -> 40.57935403
C52: Fußkreisdurchmesser 1 (df1) | J52: Zahnweite Zahnrad 2
C53: =D18-2*(D6+C26) -> 95.332 | J53: =D6*COS(D9*PI()/180)*((J41-0.5)*PI()+D8*(TAN(ATAN(TAN(D9*PI()/180)/COS(0))-ATAN(TAN(D9*PI()/180)/COS(0))+2*0.3*SIN(D9*PI()/180)))) -> 85.17377784
C56: Fußkreisdurchmesser 2 (df2)
C57: =D19-2*(D6+C26) -> 145.332

Sheet Zahnweite Wk
B3: Zahnweite Wk
B6: Gegeben:
B7: Modul m: | C7: 2
B8: Zähnezahl z: | C8: 36
B9: Öffnungswinkel Alpha: | C9: 20
B10: Profilverschiebungsfaktor x: | C10: 0.3
B11: Basissteigungswinkel Beta: | C11: 0
B12: inv Alpha: | C12: =TAN(C9*PI()/180)-(C9*PI()/180) -> 0.01490438387
B15: Gesucht:
B16: Zähnezahl für die Messung k: | C16: =IF(C11=0,ROUND(((C8/PI())*((TAN(C9*PI()/180)/1)-C12-(C7*C10/C8)*TAN(C9*PI()/180))+1),0),ROUND(((C8/PI())*((TAN(C9*PI()/180)/(COS(C9*PI()/180)^2*C11))-C12-(C7*C10/C8)*TAN(C9*PI()/180))+1),0)) -> 5
B17: Abstand Wk | C17: =C7*COS(C9*(PI()/180))*((C16-0.5)*PI()+C8*C12)+C7*C10*C7*SIN(C9*(PI()/180)) -> 27.98800593
E21: Formeln: | F21: Dezimalwinkel in Bogenmass= WertxPi()/180
F22: Bogenmass in Dezimalwinkel=Wertx180/Pi()

Sheet Evolvente berechnen
I1: Dezimalwinkel in Bogenmass= WertxPi()/180
I2: Bogenmass in Dezimalwinkel=Wertx180/Pi()
B3: Zahnradmessung
R4: Solver | W4: Formelspeicher
R5: Bogenlänge Bl: | T5: =$C$19/360*(T10+$C$21) -> 10.15470404
B6: Gegeben: | R6: Strecke a: | T6: 4.197506127 | W6: =SIN($T$13*PI()/180)*$T$8 -> 4.242206616
B7: Modul: | C7: 5 | P7: Werte für Solverlauf | R7: Strecke b: | T7: 25.25249941 | W7: =COS($T$13*PI()/180)*$T$8 -> 25.25352298
B8: Zähnezahl | C8: 10 | J8: Öffnungswinkel: | L8: =360/(C8*2) -> 18 | R8: Strecke c: | T8: 25.60735715 | W8: =SQRT($T$5^2+($C$18/2)^2) -> 25.59310264
B9: Messkugeldurchmesser: | C9: 10 | J9: Winkelkorrektur von Zahn und Zahnlücke: | L9: 0 | R9: Strecke b2: | T9: 2.758875283 | W9: =$T$6/TAN((90-($T$10+$L$13/2))*PI()/180) -> 2.716788712
B10: Eingriffswinkel | C10: 20 | R10: Teilungswinkel: | T10: 23.91250983 | W10: 28.1972367
O11: Solverlauf durchführen | P11: Wichtiger Hinweis! | R11: Winkel Alpha 2: | T11: =ATAN(T5/($C$18/2))*180/PI() -> 23.37672414
K12: Breite am Teilkreisdurchm. | L12: Winkel | R12: Winkel Alpha 3: | T12: =T10-T11 -> 0.535785695 | W12: Korrekturwert
B13: Gesucht: | J13: Zahnlücke: | K13: =TAN((L8+L9)/2*PI()/180)*(C20/2)*2 -> 7.919222016 | L13: =L8+L9 -> 18 | M13: (Alpha z) | R13: Winkel alpha 4: | T13: =T12+$L$13/2 -> 9.535785695 | W13: 0.24
B14: Öffnungswinkel | C14: =360/C20 -> 7.2 | J14: Zahn: | K14: =TAN((L8-L9)/2*PI()/180)*(C20/2)*2-L11 -> 7.919222016 | L14: =L8-L9 -> 18 | R14: Zahnlückenwinkel: | T14: =L13 -> 18
B15: Ankathete a | C15: =SIN((C14/2)*PI()/180)*C20/2 -> 1.569762988 | R15: Kugel Ø | T15: =$T$6/SIN((90-($T$10+$T$14/2))*PI()/180)*2 -> 9.999999718
B16: Gegenkathete b | C16: =COS((C14/2)*PI()/180)*C20/2 -> 24.95066821 | J16: Startwinkel | K16: 0 | M16: Winkel für Vektor | N16: =L9 -> 0 | O16: ±Grad | R16: Zweikugelmaß Mdk: | T16: =(T7+T9+T15/2)*2-W13 -> 65.7827491
B17: Berührpunktabstand Bab | C17: =C15*2 -> 3.139525976 | J17: Inkrement | K17: 1
B18: Grundkreisdurchmesser dg | C18: =COS(C10*PI()/180)*C20 -> 46.98463104 | Q18: dm/2 | T18: DM | U18: Mdk | V18: Kugel-XM | W18: Trefferindikator
B19: Teilkreisumfang | C19: =C18*PI() -> 147.6065717 | F19: Winkel | G19: Bogenlänge | J19: Teilungsw. Alpha | K19: Bogenlänge Bl | L19: Strecke c | M19: Winkel alpha 2 | N19: Winkel alpha 3 | O19: Winkel alpha 4 | P19: Strecke a | Q19: Strecke b | R19: Strecke b2 | S19: Vektorwinkel | T19: Kugel Ø | U19: Prüfmaß | W19: Untergrenze | X19: Obergrenze
B20: Teilkreisdurchmesser: | C20: =C8*C7 -> 50 | E20: 1 | F20: 1 | G20: =$C$19/360*F20 -> 0.4100182547 | I20: 1 | J20: =K16 -> 0 | K20: =$C$19/360*(J20+$C$21) -> 0.3501384884 | L20: =SQRT(K20^2+($C$18/2)^2) -> 23.49492467 | M20: =ATAN(K20/($C$18/2))*180/PI() -> 0.8538950673 | N20: =J20-M20 -> -0.8538950673 | O20: =N20+$L$13/2 -> 8.146104933 | P20: =SIN(O20*PI()/180)*L20 -> 3.329180108 | Q20: =COS(O20*PI()/180)*L20 -> 23.25785986 | R20: =P20/TAN((90-(J20+$L$13/2))*PI()/180) -> 0.5272903282 | S20: =J20+$L$13/2 -> 9 | T20: =P20/SIN((90-(J20+$L$13/2))*PI()/180)*2 -> 6.741357514 | U20: =(Q20+R20+T20/2)*2 -> 54.31165789 | V20: =COS(J20*PI()/180)*$C$9/2*2 -> 10 | W20: =IF(AND(T20<$C$9,T21>$C$9),"1","0") -> 0 | X20: =IF(AND(T20>$C$9,T19<$C$9),"1","0") -> 0
B21: Korrektur inv alpha y | C21: =(TAN(C10*PI()/180)-(PI()/9))*180/PI() -> 0.8539582918 | E21: 2 | F21: 3 | G21: 1.230054764 | I21: 2 | J21: =J20+$K$17 -> 1 | K21: =$C$19/360*(J21+$C$21) -> 0.7601567432 | L21: =SQRT(K21^2+($C$18/2)^2) -> 23.50461076 | M21: =ATAN(K21/($C$18/2))*180/PI() -> 1.853311655 | N21: -0.8533116547 | O21: 8.146688345 | P21: =SIN(O21*PI()/180)*L21 -> 3.330789525 | Q21: =COS(O21*PI()/180)*L21 -> 23.26741429 | R21: 0.5873080603 | S21: =J21+$L$13/2 -> 10 | T21: 6.764344645 | U21: =(Q21+R21+T21/2)*2 -> 54.47378935 | V21: 9.998476952 | W21: 0 | X21: 0
B22: Bogenlänge | C22: =C19/360*C21 -> 0.3501384884 | E22: 3 | F22: 5 | G22: 2.050091274 | I22: 3 | J22: =J21+$K$17 -> 2 | K22: 1.170174998 | L22: 23.52144124 | M22: 2.85160145 | N22: -0.8516014498 | O22: 8.14839855 | P22: 3.333869536 | Q22: 23.28397543 | R22: 0.648038591 | S22: 11 | T22: 6.79253711 | U22: 54.65656516 | V22: 9.99390827 | W22: 0 | X22: 0
B23: dp-Wert | C23: =C8/C20 -> 0.2 | E23: 4 | F23: 10 | G23: 4.100182547 | I23: 4 | J23: 3 | K23: 1.580193253 | L23: 23.54540081 | M23: 3.848161633 | N23: -0.848161633 | O23: 8.151838367 | P23: 3.338664802 | Q23: 23.30749271 | R23: 0.7096551109 | S23: 12 | T23: 6.82650512 | U23: 54.86080077 | V23: 9.986295348 | W23: 0 | X23: 0
E24: 5 | F24: 20 | G24: 8.200365095 | I24: 5 | J24: 4 | K24: 1.990211507 | L24: 23.57646772 | M24: 4.842395653 | N24: -0.8423956529 | O24: 8.157604347 | P24: 3.34541863 | Q24: 23.33790917 | R24: 0.7723507476 | S24: 13 | T24: 6.866833764 | U24: 55.0873536 | V24: 9.975640503 | W24: 0 | X24: 0
B25: Kugelabschnittsrechner | E25: 6 | F25: 30 | G25: 12.30054764 | I25: 6 | J25: 5 | K25: 2.400229762 | L25: 23.61461394 | M25: 5.833715337 | N25: -0.8337153367 | O25: 8.166284663 | P25: 3.354372822 | Q25: 23.37516148 | R25: 0.8363390766 | S25: 14 | T25: 6.914124697 | U25: 55.33712582 | V25: 9.961946981 | W25: 0 | X25: 0
B26: Winkel: | C26: 20 | E26: 7 | F26: 40 | G26: 16.40073019 | I26: 7 | J26: 6 | K26: 2.810248017 | L26: 23.65980521 | M26: 6.821542925 | N26: -0.8215429253 | O26: 8.178457075 | P26: 3.365767532 | Q26: 23.41917999 | R26: 0.9018546922 | S26: 15 | T26: 6.96899791 | U26: 55.61106727 | V26: 9.945218954 | W26: 0 | X26: 0
B27: Kugelabschnitt l: | C27: =COS(C26*PI()/180)*C9/2*2 -> 9.396926208 | E27: 8 | F27: 50 | G27: 20.50091274 | I27: 8 | J27: 7 | K27: 3.220266272 | L27: 23.71200125 | M27: 7.805313018 | N27: -0.805313018 | O27: 8.194686982 | P27: 3.379841114 | Q27: 23.46988874 | R27: 0.9691538441 | S27: 16 | T27: 7.032093609 | U27: 55.91017877 | V27: 9.925461516 | W27: 0 | X27: 0
E28: 9 | F28: 60 | G28: 24.60109528 | I28: 9 | J28: 8 | K28: 3.630284526 | L28: 23.77115593 | M28: 8.784474408 | N28: -0.7844744075 | O28: 8.215525592 | P28: 3.396829978 | Q28: 23.52720554 | R28: 1.038515144 | S28: 17 | T28: 7.104074213 | U28: 56.23551557 | V28: 9.902680687 | W28: 0 | X28: 0
E29: 10 | F29: 70 | G29: 28.70127783 | I29: 10 | J29: 9 | K29: 4.040302781 | L29: 23.83721743 | M29: 9.758491795 | N29: -0.758491795 | O29: 8.241508205 | P29: 3.416968445 | Q29: 23.59104198 | R29: 1.110240349 | S29: 18 | T29: 7.185626483 | U29: 56.58819114 | V29: 9.876883406 | W29: 0 | X29: 0
E30: 11 | F30: 80 | G30: 32.80146038 | I30: 11 | J30: 10 | K30: 4.450321036 | L30: 23.91012852 | M30: 10.72684737 | N30: -0.7268473707 | O30: 8.273152629 | P30: 3.440488601 | Q30: 23.66130351 | R30: 1.184655229 | S30: 19 | T30: 7.277463795 | U30: 56.96938128 | V30: 9.84807753 | W30: 0 | X30: 0
E31: 12 | F31: 90 | G31: 36.90164293 | I31: 12 | J31: 11 | K31: 4.860339291 | L31: 23.98982673 | M31: 11.68904225 | N31: -0.6890422516 | O31: 8.310957748 | P31: 3.467620155 | Q31: 23.73788948 | R31: 1.26211052 | S31: 20 | T31: 7.380328585 | U31: 57.38032859 | V31: 9.816271834 | W31: 0 | X31: 0
I32: 13 | J32: 12 | K32: 5.270357545 | L32: 24.07624466 | M32: 12.64459777 | N32: -0.6445977676 | O32: 8.355402232 | P32: 3.498590298 | Q32: 23.82069317 | R32: 1.342982989 | S32: 21 | T32: 7.494994965 | U32: 57.82234728 | V32: 9.781476007 | W32: 0 | X32: 0
I33: 14 | J33: 13 | K33: 5.6803758 | L33: 24.16931024 | M33: 13.59305659 | N33: -0.5930565899 | O33: 8.40694341 | P33: 3.533623559 | Q33: 23.90960188 | R33: 1.42767659 | S33: 22 | T33: 7.622271551 | U33: 58.2968285 | V33: 9.743700648 | W33: 0 | X33: 0
I34: 15 | J34: 14 | K34: 6.090394055 | L34: 24.26894699 | M34: 14.5339837 | N34: -0.5339837001 | O34: 8.4660163 | P34: 3.572941667 | Q34: 24.004497 | R34: 1.516623757 | S34: 23 | T34: 7.763004516 | U34: 58.80524602 | V34: 9.702957263 | W34: 0 | X34: 0
I35: 16 | J35: 15 | K35: 6.500412309 | L35: 24.37507433 | M35: 15.4669672 | N35: -0.4669671957 | O35: 8.533032804 | P35: 3.616763414 | Q35: 24.10525401 | R35: 1.61028682 | S35: 24 | T35: 7.918080888 | U35: 59.34916256 | V35: 9.659258263 | W35: 0 | X35: 0
I36: 17 | J36: 16 | K36: 6.910430564 | L36: 24.48760787 | M36: 16.39161894 | N36: -0.3916189352 | O36: 8.608381065 | P36: 3.665304517 | Q36: 24.21174264 | R36: 1.709159566 | S36: 25 | T36: 8.088432141 | U36: 59.93023656 | V36: 9.612616959 | W36: 0 | X36: 0
I37: 18 | J37: 17 | K37: 7.320448819 | L37: 24.60645971 | M37: 17.30757502 | N37: -0.3075750229 | O37: 8.692424977 | P37: 3.71877748 | Q37: 24.32382687 | R37: 1.813768967 | S37: 26 | T37: 8.275038082 | U37: 60.55022975 | V37: 9.56304756 | W37: 0 | X37: 0
I38: 19 | J38: 18 | K38: 7.730467074 | L38: 24.73153876 | M38: 18.21449614 | N38: -0.2144961391 | O38: 8.785503861 | P38: 3.777391465 | Q38: 24.44136501 | R38: 1.924677084 | S38: 27 | T38: 8.478931102 | U38: 61.21101528 | V38: 9.510565163 | W38: 0 | X38: 0
I39: 20 | J39: 19 | K39: 8.140485328 | L39: 24.86275105 | M39: 19.11206772 | N39: -0.112067721 | O39: 8.887932279 | P39: 3.841352155 | Q39: 24.56420981 | R39: 2.042483171 | S39: 28 | T39: 8.70120081 | U39: 61.91458677 | V39: 9.455185756 | W39: 0 | X39: 0
I40: 21 | J40: 20 | K40: 8.550503583 | L40: 25 | M40: 20 | N40: 0 | O40: 9 | P40: 3.910861626 | Q40: 24.69220851 | R40: 2.167825998 | S40: 29 | T40: 8.942999098 | U40: 62.66306812 | V40: 9.396926208 | W40: 0 | X40: 0
I41: 22 | J41: 21 | K41: 8.960521838 | L41: 25.14318675 | M41: 20.87802791 | N41: 0.1219720946 | O41: 9.121972095 | P41: 3.986118217 | Q41: 24.82520295 | R41: 2.301386426 | S41: 30 | T41: 9.205545703 | U41: 63.45872446 | V41: 9.335804265 | W41: 0 | X41: 0
I42: 23 | J42: 22 | K42: 9.370540093 | L42: 25.29221046 | M42: 21.74591084 | N42: 0.2540891578 | O42: 9.254089158 | P42: 4.067316403 | Q42: 24.96302961 | R42: 2.443890252 | S42: =J42+$L$13/2 -> 31 | T42: 9.490134306 | U42: 64.30397403 | V42: 9.271838546 | W42: 0 | X42: 0
I43: 24 | J43: 23 | K43: 9.780558347 | L43: 25.44696858 | M43: 22.60343235 | N43: 0.3965676467 | O43: 9.396567647 | P43: 4.154646669 | Q43: 25.10551973 | R43: 2.596111372 | S43: 32 | T43: 9.798139253 | U43: 65.20140146 | V43: 9.205048535 | W43: 1 | X43: 0
I44: 25 | J44: 24 | K44: 10.1905766 | L44: 25.60735715 | M44: =ATAN(K44/($C$18/2))*180/PI() -> 23.45039968 | N44: 0.5496003238 | O44: 9.549600324 | P44: 4.248295388 | Q44: 25.25249941 | R44: 2.758875283 | S44: 33 | T44: 10.13102296 | U44: 66.15377234 | V44: 9.135454576 | W44: 0 | X44: 1
I45: 26 | J45: 25 | K45: 10.60059486 | L45: 25.77327103 | M45: 24.2866432 | N45: 0.7133567955 | O45: 9.713356796 | P45: 4.348444697 | Q45: 25.40378965 | R45: 2.933062983 | S45: 34 | T45: 10.49034408 | U45: 67.16404935 | V45: 9.06307787 | W45: 0 | X45: 0
I46: 27 | J46: 26 | K46: 11.01061311 | L46: 25.94460425 | M46: 25.11201587 | N46: 0.8879841344 | O46: 9.887984134 | P46: 4.455272378 | Q46: 25.55920651 | R46: 3.119615304 | S46: 35 | T46: 10.87776661 | U46: 68.23541025 | V46: 8.987940463 | W46: 0 | X46: 0
I47: 28 | J47: 27 | K47: 11.42063137 | L47: 26.12125015 | M47: 25.92639243 | N47: 1.073607575 | O47: 10.07360757 | P47: 4.568951743 | Q47: 25.71856118 | R47: 3.31953775 | S47: 36 | T47: 11.29506988 | U47: 69.37126774 | V47: 8.910065242 | W47: 0 | X47: 0
I48: 29 | J48: 28 | K48: 11.83064962 | L48: 26.3031017 | M48: 26.72966873 | N48: 1.270331272 | O48: 10.27033127 | P48: 4.689651514 | Q48: 25.88166006 | R48: 3.533905892 | S48: 37 | T48: 11.74415977 | U48: 70.57529168 | V48: 8.829475929 | W48: 0 | X48: 0
I49: 30 | J49: 29 | K49: 12.24066788 | L49: 26.49005169 | M49: 27.52176089 | N49: 1.478239113 | O49: 10.47823911 | P49: 4.817535714 | Q49: 26.0483049 | R49: 3.763871409 | S49: 38 | T49: 12.22708115 | U49: 71.85143376 | V49: 8.746197071 | W49: 0 | X49: 0
I50: 31 | J50: 30 | K50: 12.65068613 | L50: 26.68199295 | M50: 28.30260443 | N50: 1.697395571 | O50: 10.69739557 | P50: 4.952763554 | Q50: 26.21829287 | R50: 4.010668846 | S50: 39 | T50: 12.74603176 | U50: 73.2039552 | V50: 8.660254038 | W50: 0 | X50: 0
I51: 32 | J51: 31 | K51: 13.06070439 | L51: 26.87881857 | M51: 29.07215341 | N51: 1.927846591 | O51: 10.92784659 | P51: 5.095489321 | Q51: 26.39141671 | R51: 4.27562321 | S51: 40 | T51: 13.30337781 | U51: 74.63745765 | V51: 8.571673007 | W51: 0 | X51: 0
I52: 33 | J52: 32 | K52: 13.47072264 | L52: 27.08042202 | M52: 29.8303795 | N52: =J52-M52 -> 2.169620503 | O52: =N52+$L$13/2 -> 11.1696205 | P52: 5.24586228 | Q52: 26.5674648 | R52: =P52/TAN((90-(J52+$L$13/2))*PI()/180) -> 4.560158508 | S52: 41 | T52: =P52/SIN((90-(J52+$L$13/2))*PI()/180)*2 -> 13.90167136 | U52: =(Q52+R52+T52/2)*2 -> 76.15691798 | V52: =COS(J52*PI()/180)*$C$9/2*2 -> 8.480480962 | W52: =IF(AND(T52<$C$9,T53>$C$9),"1","0") -> 0 | X52: =IF(AND(T52>$C$9,T51<$C$9),"1","0") -> 0
I53: 34 | J53: 33 | K53: 13.88074089 | L53: 27.28669742 | M53: 30.57727105 | N53: 2.422728952 | O53: 11.42272895 | P53: 5.404026559 | Q53: 26.74622129 | R53: 4.865807369 | S53: 42 | T53: 14.54367002 | U53: 77.76772733 | V53: 8.386705679 | W53: 0 | X53: 0
I54: 35 | J54: 34 | K54: 14.29075915 | L54: 27.49753963 | M54: 31.31283217 | N54: 2.687167827 | O54: 11.68716783 | P54: 5.570121056 | Q54: 26.92746622 | R54: 5.194221916 | S54: 43 | T54: 15.23235896 | U54: 79.47573523 | V54: 8.290375726 | W54: 0 | X54: 0
I55: 36 | J55: 35 | K55: 14.7007774 | L55: 27.7128444 | M55: 32.03708179 | N55: 2.962918207 | O55: 11.96291821 | P55: 5.744279334 | Q55: 27.11097563 | R55: 5.547186073 | S55: 44 | T55: 15.97097597 | U55: 81.28729938 | V55: 8.191520443 | W55: 0 | X55: 0
I56: 37 | J56: 36 | K56: 15.11079566 | L56: 27.93250855 | M56: 32.75005271 | N56: 3.249947291 | O56: 12.24994729 | P56: 5.92662953 | Q56: 27.29652169 | R56: 5.92662953 | S56: 45 | T56: 16.76303972 | U56: 83.20934216 | V56: 8.090169944 | W56: 0 | X56: 0
I57: 38 | J57: 37 | K57: 15.52081391 | L57: 28.15643005 | M57: 33.45179068 | N57: 3.548209318 | O57: 12.54820932 | P57: 6.117294254 | Q57: 27.4838728 | R57: 6.334643638 | S57: 46 | T57: 17.6123819 | U57: 85.24941477 | V57: 7.9863551 | W57: 0 | X57: 0
I58: 39 | J58: 38 | K58: 15.93083217 | L58: 28.38450813 | M58: 34.14235352 | N58: 3.857646482 | O58: 12.85764648 | P58: 6.316390502 | Q58: 27.67279373 | R58: 6.773499534 | S58: 47 | T58: 18.52318384 | U58: 87.41577038 | V58: 7.880107536 | W58: 0 | X58: 0
I59: 40 | J59: 39 | K59: 16.34085042 | L59: 28.61664343 | M59: 34.82181019 | N59: 4.178189815 | O59: 13.17818981 | P59: 6.524029565 | Q59: 27.86304576 | R59: 7.245668882 | S59: =J59+$L$13/2 -> 48 | T59: 19.50001839 | U59: 89.71744768 | V59: 7.771459615 | W59: 0 | X59: 0
I60: 41 | J60: 40 | K60: 16.75086868 | L60: 28.852738 | M60: 35.49023995 | N60: 4.509760055 | O60: 13.50976005 | P60: 6.740316945 | Q60: 28.05438678 | R60: 7.753847668 | S60: 49 | T60: 20.54789782 | U60: 92.16436671 | V60: 7.660444431 | W60: 0 | X60: 0
I61: 42 | J61: 41 | K61: 17.16088693 | L61: 29.09269545 | M61: 36.14773152 | N61: 4.852268484 | O61: 13.85226848 | P61: 6.965352268 | Q61: 28.24657141 | R61: 8.300983589 | S61: 50 | T61: 21.67232897 | U61: 94.76743898 | V61: 7.547095802 | W61: 0 | X61: 0
I62: 43 | J62: 42 | K62: 17.57090519 | L62: 29.33642101 | M62: 36.79438226 | N62: 5.205617743 | O62: 14.20561774 | P62: 7.199229208 | Q62: 28.43935119 | R62: 8.890307678 | S62: 51 | T62: 22.8793769 | U62: 97.53869464 | V62: 7.431448255 | W62: 0 | X62: 0
I63: 44 | J63: 43 | K63: 17.98092344 | L63: 29.58382153 | M63: 37.43029739 | N63: 5.569702605 | O63: 14.56970261 | P63: 7.442035403 | Q63: 28.63247466 | R63: 9.52537094 | S63: 52 | T63: 24.17573846 | U63: 100.4914297 | V63: 7.313537016 | W63: 0 | X63: 0
I64: 45 | J64: 44 | K64: 18.3909417 | L64: 29.8348056 | M64: 38.05558927 | N64: 5.944410731 | O64: 14.94441073 | P64: 7.693852384 | Q64: 28.82568751 | R64: 10.21008696 | S64: 53 | T64: 25.56882792 | U64: 103.6403769 | V64: 7.193398003 | W64: 0 | X64: 0
I65: 46 | J65: 45 | K65: 18.80095995 | L65: 30.08928353 | M65: 38.67037662 | N65: 6.329623378 | O65: 15.32962338 | P65: 7.954755504 | Q65: 29.01873272 | R65: 10.94878166 | S65: 54 | T65: 27.0668768 | U65: 107.0019055 | V65: 7.071067812 | W65: 0 | X65: 0
I66: 47 | J66: 46 | K66: 19.21097821 | L66: 30.34716745 | M66: 39.27478392 | N66: 6.725216084 | O66: 15.72521608 | P66: 8.224813865 | Q66: 29.21135069 | R66: 11.74625153 | S66: 55 | T66: 28.67905075 | U66: 110.5942552 | V66: 6.946583705 | W66: 0 | X66: 0
I67: 48 | J67: 47 | K67: 19.62099646 | L67: 30.60837125 | M67: 39.86894069 | N67: 7.13105931 | O67: 16.13105931 | P67: 8.504090252 | Q67: 29.4032794 | R67: 12.60783228 | S67: 56 | T67: 30.41558718 | U67: 114.4378105 | V67: 6.819983601 | W67: 0 | X67: 0
I68: 49 | J68: 48 | K68: 20.03101472 | L68: 30.87281068 | M68: 40.45298094 | N68: 7.547019056 | O68: 16.54701906 | P68: 8.792641074 | Q68: 29.59425454 | R68: 13.53947993 | S68: 57 | T68: 32.28795774 | U68: 118.5554267 | V68: 6.691306064 | W68: 0 | X68: 0
I69: 50 | J69: =J68+$K$17 -> 49 | K69: 20.44103297 | L69: 31.14040329 | M69: 41.02704257 | N69: 7.972957433 | O69: 16.97295743 | P69: 9.090516299 | Q69: 29.78400965 | R69: 14.54786712 | S69: 58 | T69: 34.30906145 | U69: 122.972815 | V69: 6.56059029 | W69: 0 | X69: 0
I70: 51 | J70: =J69+$K$17 -> 50 | K70: 20.85105123 | L70: 31.41106852 | M70: 41.59126679 | N70: 8.408733211 | O70: 17.40873321 | P70: 9.397759398 | Q70: 29.97227626 | R70: 15.64049815 | S70: 59 | T70: 36.49345497 | U70: 127.7190038 | V70: 6.427876097 | W70: 0 | X70: 0
I71: 52 | J71: =J70+$K$17 -> 51 | K71: 21.26106948 | L71: 31.68472761 | M71: =ATAN(K71/($C$18/2))*180/PI() -> 42.14579768 | N71: =J71-M71 -> 8.854202323 | O71: =N71+$L$13/2 -> 17.85420232 | P71: =SIN(O71*PI()/180)*L71 -> 9.714407294 | Q71: =COS(O71*PI()/180)*L71 -> 30.15878404 | R71: =P71/TAN((90-(J71+$L$13/2))*PI()/180) -> 16.825847 | S71: =J71+$L$13/2 -> 60 | T71: =P71/SIN((90-(J71+$L$13/2))*PI()/180)*2 -> 38.85762918 | U71: =(Q71+R71+T71/2)*2 -> 132.8268913 | V71: 6.29320391 | W71: 0 | X71: 0
I72: 53 | J72: 52 | K72: 21.67108773 | L72: 31.96130367 | M72: 42.69078166 | N72: 9.309218343 | O72: 18.30921834 | P72: 10.0404903 | Q72: 30.34326097 | R72: 18.113524 | S72: 61 | T72: 41.42034269 | U72: 138.3339126 | V72: 6.156614753 | W72: 0 | X72: 0
I73: 54 | J73: 53 | K73: 22.08110599 | L73: 32.24072161 | M73: 43.22636706 | N73: 9.773632936 | O73: 18.77363294 | P73: 10.3760321 | Q73: 30.52543346 | R73: 19.51447818 | S73: 62 | T73: 44.20302708 | U73: 144.2828504 | V73: 6.018150232 | W73: 0 | X73: 0
I74: 55 | J74: 54 | K74: 22.49112424 | L74: 32.52290821 | M74: 43.75270374 | N74: 10.24729626 | O74: 19.24729626 | P74: 10.72104966 | Q74: 30.7050265 | R74: 21.04124469 | S74: 63 | T74: 47.23028199 | U74: 150.7228244 | V74: 5.877852523 | W74: 0 | X74: 0
I75: 56 | J75: 55 | K75: 22.9011425 | L75: 32.807792 | M75: 44.26994263 | N75: 10.73005737 | O75: 19.73005737 | P75: 11.07555322 | Q75: 30.88176383 | R75: 22.70824932 | S75: 64 | T75: 50.53048452 | U75: 157.7105108 | V75: 5.735764364 | W75: 0 | X75: 0
I76: 57 | J76: 56 | K76: 23.31116075 | L76: 33.09530335 | M76: 44.77823545 | N76: 11.22176455 | O76: 20.22176455 | P76: 11.43954625 | Q76: 31.05536807 | R76: 24.53218611 | S76: 65 | T76: 54.13654491 | U76: 165.3116533 | V76: 5.591929035 | W76: 0 | X76: 0
I77: 58 | J77: 57 | K77: 23.72117901 | L77: 33.38537437 | M77: 45.27773435 | N77: 11.72226565 | O77: 20.72226565 | P77: 11.81302541 | Q77: 31.22556089 | R77: 26.53248949 | S77: 66 | T77: 58.08685111 | U77: 173.6029519 | V77: 5.44639035 | W77: 0 | X77: 0
I78: 59 | J78: 58 | K78: 24.13119726 | L78: 33.67793892 | M78: 45.7685916 | N78: 12.2314084 | O78: 21.2314084 | P78: 12.19598052 | Q78: 31.39206315 | R78: 28.73192955 | S78: 67 | T78: 62.42645967 | U78: 182.6744451 | V78: 5.299192642 | W78: 0 | X78: 0
I79: 60 | J79: 59 | K79: 24.54121552 | L79: 33.97293257 | M79: 46.25095932 | N79: 12.74904068 | O79: 21.74904068 | P79: 12.58839451 | Q79: 31.55459509 | R79: 31.15736976 | S79: 68 | T79: 67.20861156 | U79: 192.6325413 | V79: 5.150380749 | W79: 0 | X79: 0
I80: 61 | J80: 60 | K80: 24.95123377 | L80: 34.27029261 | M80: 46.72498924 | N80: 13.27501076 | O80: 22.27501076 | P80: 12.99024346 | Q80: 31.71287641 | R80: 33.84074118 | S80: 69 | T80: 72.49668098 | U80: 203.6039162 | V80: 5 | W80: 0 | X80: 0
I81: 62 | J81: 61 | K81: 25.36125203 | L81: 34.56995795 | M81: 47.19083245 | N81: 13.80916755 | O81: 22.80916755 | P81: 13.40149649 | Q81: 31.86662651 | R81: 36.82030898 | S81: 70 | T81: 78.36670879 | U81: 215.7405798 | V81: 4.848096202 | W81: 0 | X81: 0
I82: 63 | J82: 62 | K82: 25.77127028 | L82: 34.87186918 | M82: 47.6486392 | N82: 14.3513608 | O82: 23.3513608 | P82: 13.8221158 | Q82: 32.01556458 | R82: 40.14233907 | S82: 71 | T82: 84.91073598 | U82: 229.2265433 | V82: 4.694715628 | W82: 0 | X82: 0
I83: 64 | J83: 63 | K83: 26.18128854 | L83: 35.17596847 | M83: 48.09855871 | N83: 14.90144129 | O83: 23.90144129 | P83: 14.25205667 | Q83: 32.1594098 | R83: 43.86332017 | S83: 72 | T83: 92.24124838 | U83: 244.2867083 | V83: 4.539904997 | W83: 0 | X83: 0
I84: 65 | J84: 64 | K84: 26.59130679 | L84: 35.48219956 | M84: 48.54073898 | N84: 15.45926102 | O84: 24.45926102 | P84: 14.69126736 | Q84: 32.29788149 | R84: 48.05297032 | S84: 73 | T84: 100.4971899 | U84: 261.1988935 | V84: =COS(J84*PI()/180)*$C$9/2*2 -> 4.383711468 | W84: =IF(AND(T84<$C$9,T85>$C$9),"1","0") -> 0 | X84: =IF(AND(T84>$C$9,T83<$C$9),"1","0") -> 0
I85: 66 | J85: 65 | K85: =$C$19/360*(J85+$C$21) -> 27.00132505 | L85: =SQRT(K85^2+($C$18/2)^2) -> 35.79050772 | M85: 48.97532668 | N85: 16.02467332 | O85: 25.02467332 | P85: 15.13968922 | Q85: 32.43069924 | R85: 52.79837086 | S85: 74 | T85: 109.8522308 | U85: 280.310371 | V85: 4.226182617 | W85: 0 | X85: 0
I86: 67 | J86: 66 | K86: 27.4113433 | L86: 36.10083974 | M86: 49.40246694 | N86: 16.59753306 | O86: 25.59753306 | P86: 15.59725658 | Q86: 32.5575831 | R86: 58.20975402 | S86: 75 | T86: 120.5263436 | U86: 302.0610178 | V86: 4.067366431 | W86: 0 | X86: 0
I87: 68 | J87: 67 | K87: 27.82136156 | L87: 36.41314388 | M87: 49.8223033 | N87: 17.1776967 | O87: 26.1776967 | P87: 16.06389682 | Q87: 32.67825372 | R87: 64.4287711 | S87: 76 | T87: 132.8023392 | U87: 327.0163889 | V87: 3.907311285 | W87: 0 | X87: 0
I88: 69 | J88: 68 | K88: 28.23137981 | L88: 36.72736983 | M88: 50.23497758 | N88: 17.76502242 | O88: 26.76502242 | P88: 16.53953034 | Q88: 32.79243252 | R88: 71.64057664 | S88: 77 | T88: 147.0500362 | U88: 355.9160545 | V88: 3.746065934 | W88: 0 | X88: 0
I89: 70 | J89: 69 | K89: 28.64139807 | L89: 37.04346868 | M89: 50.64062975 | N89: 18.35937025 | O89: 27.35937025 | P89: 17.02407056 | Q89: 32.89984184 | R89: 80.09195495 | S89: 78 | T89: 163.7625137 | U89: 389.7461073 | V89: 3.583679495 | W89: 0 | X89: 0
I90: 71 | J90: =J89+$K$17 -> 70 | K90: 29.05141632 | L90: 37.36139289 | M90: =ATAN(K90/($C$18/2))*180/PI() -> 51.03939789 | N90: =J90-M90 -> 18.96060211 | O90: 27.96060211 | P90: =SIN(O90*PI()/180)*L90 -> 17.51742395 | Q90: =COS(O90*PI()/180)*L90 -> 33.0002051 | R90: =P90/TAN((90-(J90+$L$13/2))*PI()/180) -> 90.11933375 | S90: =J90+$L$13/2 -> 79 | T90: =P90/SIN((90-(J90+$L$13/2))*PI()/180)*2 -> 183.6121397 | U90: =(Q90+R90+T90/2)*2 -> 429.8512174 | V90: 3.420201433 | W90: 0 | X90: 0

Sheet Evolvente berechnen (2)
I1: Dezimalwinkel in Bogenmass= WertxPi()/180 | T1: 22.269599
I2: Bogenmass in Dezimalwinkel=Wertx180/Pi()
B3: Zahnradmessung
R4: Solver | W4: Formelspeicher
R5: Bogenlänge Bl: | T5: =$C$19/360*(T10+$C$21) -> 29.31174559
B6: Gegeben: | R6: Strecke a: | T6: 4.49490062 | W6: =SIN($T$13*PI()/180)*$T$8 -> 4.518160396
B7: Modul: | C7: 5 | P7: Werte für Solverlauf | R7: Strecke b: | T7: 76.20680371 | W7: =COS($T$13*PI()/180)*$T$8 -> 76.20708705
B8: Zähnezahl | C8: 30 | J8: Öffnungswinkel: | L8: =360/(C8*2) -> 6 | R8: Strecke c: | T8: 76.34090575 | W8: =SQRT($T$5^2+($C$18/2)^2) -> 76.32940735
B9: Messkugeldurchmesser: | C9: 10 | J9: Winkelkorrektur von Zahn und Zahnlücke: | L9: 0 | R9: Strecke b2: | T9: 2.205983795 | W9: =$T$6/TAN((90-($T$10+$L$13/2))*PI()/180) -> 2.189947071
B10: Eingriffswinkel | C10: 20 | R10: Teilungswinkel: | T10: 22.9756682 | W10: 28.1972367
O11: Solverlauf durchführen | P11: Wichtiger Hinweis! | R11: Winkel Alpha 2: | T11: =ATAN(T5/($C$18/2))*180/PI() -> 22.58269185
K12: Breite am Teilkreisdurchm. | L12: Winkel | R12: Winkel Alpha 3: | T12: =T10-T11 -> 0.3929763458 | W12: Korrekturwert
B13: Gesucht: | J13: Zahnlücke: | K13: =TAN((L8+L9)/2*PI()/180)*(C20/2)*2 -> 7.861166892 | L13: =L8+L9 -> 6 | M13: (Alpha z) | R13: Winkel alpha 4: | T13: =T12+$L$13/2 -> 3.392976346 | W13: 0.15
B14: Öffnungswinkel | C14: =360/C20 -> 2.4 | J14: Zahn: | K14: =TAN((L8-L9)/2*PI()/180)*(C20/2)*2-L11 -> 7.861166892 | L14: =L8-L9 -> 6 | R14: Zahnlückenwinkel: | T14: =L13 -> 6
B15: Ankathete a | C15: =SIN((C14/2)*PI()/180)*C20/2 -> 1.570681491 | R15: Kugel Ø | T15: =$T$6/SIN((90-($T$10+$T$14/2))*PI()/180)*2 -> 9.999999952
B16: Gegenkathete b | C16: =COS((C14/2)*PI()/180)*C20/2 -> 74.98355126 | J16: Startwinkel | K16: 0 | M16: Winkel für Vektor | N16: =L9 -> 0 | O16: ±Grad | R16: Zweikugelmaß Mdk: | T16: =(T7+T9+T15/2)*2-W13 -> 166.675575
B17: Berührpunktabstand Bab | C17: =C15*2 -> 3.141362983 | J17: Inkrement | K17: 1
B18: Grundkreisdurchmesser dg | C18: =COS(C10*PI()/180)*C20 -> 140.9538931 | Q18: dm/2 | T18: DM | U18: Mdk | V18: Kugel-XM | W18: Trefferindikator | Y18: Abweichung | Z18: Suchbandgrenze nach unten
B19: Teilkreisumfang | C19: =C18*PI() -> 442.8197151 | F19: Winkel | G19: Bogenlänge | J19: Teilungsw. Alpha | K19: Bogenlänge Bl | L19: Strecke c | M19: Winkel alpha 2 | N19: Winkel alpha 3 | O19: Winkel alpha 4 | P19: Strecke a | Q19: Strecke b | R19: Strecke b2 | S19: Vektorwinkel | T19: Kugel Ø | U19: Prüfmaß | W19: Untergrenze | X19: Obergrenze | Y19: in Prozent | Z19: Strecke b2 | AA19: Strecke b | AB19: Strecke a | AC19: Strecke c | AD19: Teilungsw. Alpha
B20: Teilkreisdurchmesser: | C20: =C8*C7 -> 150 | E20: 1 | F20: 1 | G20: =$C$19/360*F20 -> 1.230054764 | I20: 1 | J20: =K16 -> 0 | K20: =$C$19/360*(J20+$C$21) -> 1.050415465 | L20: =SQRT(K20^2+($C$18/2)^2) -> 70.48477402 | M20: =ATAN(K20/($C$18/2))*180/PI() -> 0.8538950673 | N20: =J20-M20 -> -0.8538950673 | O20: =N20+$L$13/2 -> 2.146104933 | P20: =SIN(O20*PI()/180)*L20 -> 2.639502484 | Q20: =COS(O20*PI()/180)*L20 -> 70.43533485 | R20: =P20/TAN((90-(J20+$L$13/2))*PI()/180) -> 0.1383304636 | S20: =J20+$L$13/2 -> 3 | T20: =P20/SIN((90-(J20+$L$13/2))*PI()/180)*2 -> 5.286249589 | U20: =(Q20+R20+T20/2)*2 -> 146.4335802 | V20: =COS(J20*PI()/180)*$C$9/2*2 -> 10 | W20: =IF(AND(T20<$C$9,T21>$C$9),"1","0") -> 0 | X20: =IF(AND(T20>$C$9,T19<$C$9),"1","0") -> 0 | Y20: =IF(AND(T20>$C$9,T19<$C$9),(100/(T20-T19))*(T20-$C$9),"0") -> 0 | Z20: =IF(AND(T20>$C$9,T19<$C$9),R20-((R20-R19)/100*Y20),"0") -> 0 | AA20: =IF(AND(T20>$C$9,T19<$C$9),Q20-((Q20-Q19)/100*Y20),"0") -> 0 | AB20: =IF(AND(T20>$C$9,T19<$C$9),P20-((P20-P19)/100*Y20),"0") -> 0 | AC20: =IF(AND(T20>$C$9,T19<$C$9),L20-((L20-L19)/100*Y20),"0") -> 0
B21: Korrektur inv alpha y | C21: =(TAN(C10*PI()/180)-(PI()/9))*180/PI() -> 0.8539582918 | E21: 2 | F21: 3 | G21: 3.690164293 | I21: 2 | J21: =J20+$K$17 -> 1 | K21: =$C$19/360*(J21+$C$21) -> 2.28047023 | L21: =SQRT(K21^2+($C$18/2)^2) -> 70.51383227 | M21: =ATAN(K21/($C$18/2))*180/PI() -> 1.853311655 | N21: -0.8533116547 | O21: 2.146688345 | P21: =SIN(O21*PI()/180)*L21 -> 2.641308154 | Q21: =COS(O21*PI()/180)*L21 -> 70.46434582 | R21: 0.1846982585 | S21: =J21+$L$13/2 -> 4 | T21: 5.295515918 | U21: =(Q21+R21+T21/2)*2 -> 146.5936041 | V21: 9.998476952 | W21: 0 | X21: 0 | Y21: 0 | Z21: 0 | AA21: 0 | AB21: 0 | AC21: 0
B22: Bogenlänge | C22: =C19/360*C21 -> 1.050415465 | E22: 3 | F22: 5 | G22: 6.150273821 | I22: 3 | J22: =J21+$K$17 -> 2 | K22: 3.510524994 | L22: 70.56432372 | M22: 2.85160145 | N22: -0.8516014498 | O22: 2.14839855 | P22: 2.645304238 | Q22: 70.51472291 | R22: 0.2314341324 | S22: 5 | T22: 5.31081774 | U22: 146.8031318 | V22: 9.99390827 | W22: 0 | X22: 0 | Y22: 0 | Z22: 0 | AA22: 0 | AB22: 0 | AC22: 0
B23: dp-Wert | C23: =C8/C20 -> 0.2 | E23: 4 | F23: 10 | G23: 12.30054764 | I23: 4 | J23: 3 | K23: 4.740579758 | L23: 70.63620242 | M23: 3.848161633 | N23: -0.848161633 | O23: 2.151838367 | P23: 2.652236554 | Q23: 70.58639199 | R23: 0.2787612947 | S23: 6 | T23: 5.333691628 | U23: 147.0639982 | V23: 9.986295348 | W23: 0 | X23: 0 | Y23: 0 | Z23: 0 | AA23: 0 | AB23: 0 | AC23: 0
E24: 5 | F24: 20 | G24: 24.60109528 | I24: 5 | J24: 4 | K24: 5.970634522 | L24: 70.72940317 | M24: 4.842395653 | N24: -0.8423956529 | O24: 2.157604347 | P24: 2.662848885 | Q24: 70.6792594 | R24: 0.326956731 | S24: 7 | T24: 5.36569283 | U24: 147.3781251 | V24: 9.975640503 | W24: 0 | X24: 0 | Y24: 0 | Z24: 0 | AA24: 0 | AB24: 0 | AC24: 0
B25: Kugelabschnittsrechner | E25: 6 | F25: 30 | G25: 36.90164293 | I25: 6 | J25: 5 | K25: 7.200689286 | L25: 70.84384181 | M25: 5.833715337 | N25: -0.8337153367 | O25: 2.166284663 | P25: 2.677882526 | Q25: 70.79321202 | R25: 0.3763518454 | S25: 8 | T25: 5.408399221 | U25: 147.7475269 | V25: 9.961946981 | W25: 0 | X25: 0 | Y25: 0 | Z25: 0 | AA25: 0 | AB25: 0 | AC25: 0
B26: Winkel: | C26: 20 | E26: 7 | F26: 40 | G26: 49.20219057 | I26: 7 | J26: 6 | K26: 8.430744051 | L26: 70.97941562 | M26: 6.821542925 | N26: -0.8215429253 | O26: 2.178457075 | P26: 2.698075831 | Q26: 70.92811733 | R26: 0.4273332305 | S26: 9 | T26: 5.463415372 | U26: 148.1743165 | V26: 9.945218954 | W26: 0 | X26: 0 | Y26: 0 | Z26: 0 | AA26: 0 | AB26: 0 | AC26: 0
B27: Kugelabschnitt l: | C27: =COS(C26*PI()/180)*C9/2*2 -> 9.396926208 | E27: 8 | F27: 50 | G27: 61.50273821 | I27: 8 | J27: 7 | K27: 9.660798815 | L27: 71.13600375 | M27: 7.805313018 | N27: -0.805313018 | O27: 2.194686982 | P27: 2.724163764 | Q27: 71.08382349 | R27: 0.4803435715 | S27: 10 | T27: 5.532376763 | U27: 148.6607109 | V27: 9.925461516 | W27: 0 | X27: 0 | Y27: 0 | Z27: 0 | AA27: 0 | AB27: 0 | AC27: 0
E28: 9 | F28: 60 | G28: 73.80328585 | I28: 9 | J28: 8 | K28: 10.89085358 | L28: 71.31346779 | M28: 8.784474408 | N28: -0.7844744075 | O28: 2.215525592 | P28: 2.756877446 | Q28: 71.26015938 | R28: 0.5358826902 | S28: 11 | T28: 5.616954161 | U28: 149.2090383 | V28: 9.902680687 | W28: 0 | X28: 0 | Y28: 0 | Z28: 0 | AA28: 0 | AB28: 0 | AC28: 0
E29: 10 | F29: 70 | G29: 86.10383349 | I29: 10 | J29: 9 | K29: 12.12090834 | L29: 71.5116523 | M29: 9.758491795 | N29: -0.758491795 | O29: 2.241508205 | P29: 2.796943708 | Q29: 71.45693473 | R29: 0.5945087378 | S29: 12 | T29: 5.718858189 | U29: 149.8217451 | V29: 9.876883406 | W29: 0 | X29: 0 | Y29: 0 | Z29: 0 | AA29: 0 | AB29: 0 | AC29: 0
E30: 11 | F30: 80 | G30: 98.40438114 | I30: 11 | J30: 10 | K30: 13.35096311 | L30: 71.73038556 | M30: 10.72684737 | N30: -0.7268473707 | O30: 2.273152629 | P30: 2.845084647 | Q30: 71.67394021 | R30: 0.6568395462 | S30: 13 | T30: 5.839844121 | U30: 150.5014036 | V30: 9.84807753 | W30: 0 | X30: 0 | Y30: 0 | Z30: 0 | AA30: 0 | AB30: 0 | AC30: 0
E31: 12 | F31: 90 | G31: 110.7049288 | I31: 12 | J31: 11 | K31: 14.58101787 | L31: 71.96948019 | M31: 11.68904225 | N31: -0.6890422516 | O31: 2.310957748 | P31: 2.902017182 | Q31: 71.91094753 | R31: 0.7235541482 | S31: 14 | T31: 5.981716921 | U31: 151.2507203 | V31: 9.816271834 | W31: 0 | X31: 0 | Y31: 0 | Z31: 0 | AA31: 0 | AB31: 0 | AC31: 0
I32: 13 | J32: 12 | K32: 15.81107264 | L32: 72.22873399 | M32: 12.64459777 | N32: -0.6445977676 | O32: 2.355402232 | P32: 2.96845261 | Q32: 72.16770956 | R32: 0.7953944796 | S32: 15 | T32: 6.146336559 | U32: 152.0725446 | V32: 9.781476007 | W32: 0 | X32: 0 | Y32: 0 | Z32: 0 | AA32: 0 | AB32: 0 | AC32: 0
I33: 14 | J33: 13 | K33: 17.0411274 | L33: 72.50793073 | M33: 13.59305659 | N33: -0.5930565899 | O33: 2.40694341 | P33: 3.04509617 | Q33: 72.44396047 | R33: 0.873167276 | S33: 16 | T33: 6.335623656 | U33: 152.9698791 | V33: 9.743700648 | W33: 0 | X33: 0 | Y33: 0 | Z33: 0 | AA33: 0 | AB33: 0 | AC33: 0
I34: 15 | J34: 14 | K34: 18.27118216 | L34: 72.80684098 | M34: 14.5339837 | N34: -0.5339837001 | O34: 2.4660163 | P34: 3.132646608 | Q34: 72.73941586 | R34: 0.9577461824 | S34: 17 | T34: 6.551565469 | U34: 153.9458895 | V34: 9.702957263 | W34: 0 | X34: 0 | Y34: 0 | Z34: 0 | AA34: 0 | AB34: 0 | AC34: 0
I35: 16 | J35: 15 | K35: 19.50123693 | L35: 73.12522299 | M35: 15.4669672 | N35: -0.4669671957 | O35: 2.533032804 | P35: 3.231795742 | Q35: 73.0537729 | R35: 1.050074091 | S35: 18 | T35: 6.796222278 | U35: 155.0039163 | V35: 9.659258263 | W35: 0 | X35: 0 | Y35: 0 | Z35: 0 | AA35: 0 | AB35: 0 | AC35: 0
I36: 17 | J36: 16 | K36: 20.73129169 | L36: 73.4628236 | M36: 16.39161894 | N36: -0.3916189352 | O36: 2.608381065 | P36: 3.343228031 | Q36: 73.3867105 | R36: 1.151165729 | S36: 19 | T36: 7.071734216 | U36: 156.1474867 | V36: 9.612616959 | W36: 0 | X36: 0 | Y36: 0 | Z36: 0 | AA36: 0 | AB36: 0 | AC36: 0
I37: 18 | J37: 17 | K37: 21.96134646 | L37: 73.81937913 | M37: 17.30757502 | N37: -0.3075750229 | O37: 2.692424977 | P37: 3.467620155 | Q37: 73.73788948 | R37: 1.26211052 | S37: 20 | T37: 7.380328585 | U37: 157.3803286 | V37: 9.56304756 | W37: 0 | X37: 0 | Y37: 0 | Z37: 0 | AA37: 0 | AB37: 0 | AC37: 0
I38: 19 | J38: 18 | K38: 23.19140122 | L38: 74.19461629 | M38: 18.21449614 | N38: -0.2144961391 | O38: 2.785503861 | P38: 3.605640586 | Q38: 74.10695273 | R38: 1.384075744 | S38: 21 | T38: 7.724327724 | U38: 158.7063847 | V38: 9.510565163 | W38: 0 | X38: 0 | Y38: 0 | Z38: 0 | AA38: 0 | AB38: 0 | AC38: 0
I39: 20 | J39: 19 | K39: 24.42145599 | L39: 74.58825315 | M39: 19.11206772 | N39: -0.112067721 | O39: 2.887932279 | P39: 3.75794917 | Q39: 74.4935254 | R39: 1.51831002 | S39: 22 | T39: 8.106157483 | U39: 160.1298283 | V39: 9.455185756 | W39: 0 | X39: 0 | Y39: =IF(AND(T39>$C$9,T38<$C$9),(100/(T39-T38))*(T39-$C$9),"0") -> 0 | Z39: 0 | AA39: 0 | AB39: 0 | AC39: 0
I40: 21 | J40: 20 | K40: 25.65151075 | L40: 75 | M40: 20 | N40: 0 | O40: 3 | P40: 3.925196718 | Q40: 74.89721511 | R40: 1.666147156 | S40: 23 | T40: 8.528356376 | U40: 161.6550809 | V40: 9.396926208 | W40: 0 | X40: 0 | Y40: 0 | Z40: 0 | AA40: 0 | AB40: 0 | AC40: 0
I41: 22 | J41: 21 | K41: 26.88156551 | L41: 75.42956026 | M41: 20.87802791 | N41: 0.1219720946 | O41: 3.121972095 | P41: 4.108024588 | Q41: 75.31761212 | R41: 1.829010387 | S41: 24 | T41: 8.993585495 | U41: 163.2868305 | V41: 9.335804265 | W41: 0 | X41: 0 | Y41: 0 | Z41: 0 | AA41: 0 | AB41: 0 | AC41: 0
I42: 23 | J42: 22 | K42: 28.11162028 | L42: 75.87663139 | M42: 21.74591084 | N42: 0.2540891578 | O42: 3.254089158 | P42: 4.307064284 | Q42: 75.75428957 | R42: 2.00841706 | S42: =J42+$L$13/2 -> 25 | T42: 9.504639252 | U42: 165.0300525 | V42: 9.271838546 | W42: 1 | X42: 0 | Y42: 0 | Z42: 0 | AA42: 0 | AB42: 0 | AC42: 0
I43: 24 | J43: 23 | K43: 29.34167504 | L43: 76.34090575 | M43: 22.60343235 | N43: 0.3965676467 | O43: 3.396567647 | P43: 4.522937049 | Q43: 76.20680371 | R43: 2.205983795 | S43: 26 | T43: 10.06445707 | U43: 166.8900321 | V43: 9.205048535 | W43: 0 | X43: 1 | Y43: =IF(AND(T43>$C$9,T42<$C$9),(100/$C$9)*(T43)-100,"0") -> 0.6445707474 | Z43: =IF(AND(T43>$C$9,T42<$C$9),R43-((R43-R42)/100*Y43),"0") -> 2.204710337 | AA43: =IF(AND(T43>$C$9,T42<$C$9),Q43-((Q43-Q42)/100*Y43),"0") -> 76.20388693 | AB43: =IF(AND(T43>$C$9,T42<$C$9),P43-((P43-P42)/100*Y43),"0") -> 4.521545596 | AC43: =IF(AND(T43>$C$9,T42<$C$9),L43-((L43-L42)/100*Y43),"0") -> 76.33791317 | AD43: =IF(AND($T$43>$C$9,$T$42<$C$9),K43-((K43-K42)/100*Y43),"0") -> 29.33374647
I44: 25 | J44: 24 | K44: 30.57172981 | L44: 76.82207144 | M44: 23.45039968 | N44: 0.5496003238 | O44: 3.549600324 | P44: 4.756253475 | Q44: 76.67469408 | R44: 2.42343219 | S44: 27 | T44: 10.67613614 | U44: 168.8723887 | V44: 9.135454576 | W44: 0 | X44: 0 | Y44: =IF(AND(T44>$C$9,T43<$C$9),(100/(T44-T43))*(T44-$C$9),"0") -> 0 | Z44: =IF(AND(T44>$C$9,T43<$C$9),R44-((R44-R43)/100*Y44),"0") -> 0 | AA44: =IF(AND(T44>$C$9,T43<$C$9),Q44-((Q44-Q43)/100*Y44),"0") -> 0 | AB44: =IF(AND(T44>$C$9,T43<$C$9),P44-((P44-P43)/100*Y44),"0") -> 0 | AC44: =IF(AND(T44>$C$9,T43<$C$9),L44-((L44-L43)/100*Y44),"0") -> 0
I45: 26 | J45: 25 | K45: 31.80178457 | L45: 77.3198131 | M45: 24.2866432 | N45: 0.7133567955 | O45: 3.713356796 | P45: 5.007613106 | Q45: 77.15748382 | R45: 2.662595119 | S45: 28 | T45: 11.34294526 | U45: 170.9831031 | V45: 9.06307787 | W45: 0 | X45: 0 | Y45: 0 | Z45: 0 | AA45: 0 | AB45: 0 | AC45: 0
I46: 27 | J46: 26 | K46: 33.03183933 | L46: 77.83381274 | M46: 25.11201587 | N46: 0.8879841344 | O46: 3.887984134 | P46: 5.277604052 | Q46: 77.65467984 | R46: 2.925423696 | S46: 29 | T46: 12.06834012 | U46: 173.2285472 | V46: 8.987940463 | W46: 0 | X46: 0 | Y46: 0 | Z46: 0 | AA46: 0 | AB46: 0 | AC46: 0
I47: 28 | J47: 27 | K47: 34.2618941 | L47: 78.36375044 | M47: 25.92639243 | N47: 1.073607575 | O47: 4.073607575 | P47: 5.566802608 | Q47: 78.16577315 | R47: 3.213994984 | S47: 30 | T47: 12.85597994 | U47: 175.6155162 | V47: 8.910065242 | W47: 0 | X47: 0 | Y47: 0
I48: 29 | J48: 28 | K48: 35.49194886 | L48: 78.90930509 | M48: 26.72966873 | N48: 1.270331272 | O48: 4.270331272 | P48: 5.875772878 | Q48: 78.69023906 | R48: 3.530520529 | S48: 31 | T48: 13.70974575 | U48: 178.1512649 | V48: 8.829475929 | W48: 0 | X48: 0 | Y48: 0
I49: 30 | J49: 29 | K49: 36.72200363 | L49: 79.47015507 | M49: 27.52176089 | N49: 1.478239113 | O49: 4.478239113 | P49: 6.205066403 | Q49: 79.2275375 | R49: 3.877355822 | S49: 32 | T49: 14.63376059 | U49: 180.8435472 | V49: 8.746197071 | W49: 0 | X49: 0 | Y49: 0
I50: 31 | J50: 30 | K50: 37.95205839 | L50: 80.04597886 | M50: 28.30260443 | N50: 1.697395571 | O50: 4.697395571 | P50: 6.555221799 | Q50: 79.77711326 | R50: 4.257010811 | S50: 33 | T50: 15.6324117 | U50: 183.7006598 | V50: 8.660254038 | W50: 0 | X50: 0 | Y50: 0
I51: 32 | J51: 31 | K51: 39.18211316 | L51: 80.6364557 | M51: 29.07215341 | N51: 1.927846591 | O51: 4.927846591 | P51: 6.926764396 | Q51: 80.33839632 | R51: 4.672161579 | S51: 34 | T51: 16.71037508 | U51: 186.7314909 | V51: 8.571673007 | W51: 0 | X51: 0 | Y51: 0
I52: 33 | J52: 32 | K52: 40.41216792 | L52: 81.24126607 | M52: 29.8303795 | N52: 2.169620503 | O52: 5.169620503 | P52: 7.320205886 | Q52: 80.91080211 | R52: 5.125663343 | S52: 35 | T52: 17.87264266 | U52: =(Q52+R52+T52/2)*2 -> 189.9455736 | V52: =COS(J52*PI()/180)*$C$9/2*2 -> 8.480480962 | W52: =IF(AND(T52<$C$9,T53>$C$9),"1","0") -> 0 | X52: =IF(AND(T52>$C$9,T51<$C$9),"1","0") -> 0 | Y52: 0
I53: 34 | J53: 33 | K53: 41.64222268 | L53: 81.86009227 | M53: 30.57727105 | N53: 2.422728952 | O53: 5.422728952 | P53: 7.736043979 | Q53: 81.49373184 | R53: 5.620564949 | S53: 36 | T53: 19.12455247 | U53: 193.3531461 | V53: 8.386705679 | W53: 0 | X53: 0 | Y53: 0
I54: 35 | J54: 34 | K54: 42.87227745 | L54: 82.49261888 | M54: 31.31283217 | N54: 2.687167827 | O54: 5.687167827 | P54: 8.174762058 | Q54: 82.08657281 | R54: 6.160125058 | S54: 37 | T54: 20.47182214 | U54: 196.9652179 | V54: 8.290375726 | W54: 0 | X54: 0 | Y54: 0
I55: 36 | J55: 35 | K55: 44.10233221 | L55: 83.1385332 | M55: 32.03708179 | N55: 2.962918207 | O55: 5.962918207 | P55: 8.636828852 | Q55: 82.68869869 | R55: 6.747830241 | S55: 38 | T55: 21.92058627 | U55: 200.7936441 | V55: 8.191520443 | W55: 0 | X55: 0 | Y55: 0
I56: 37 | J56: 36 | K56: 45.33238698 | L56: 83.79752565 | M56: 32.75005271 | N56: 3.249947291 | O56: 6.249947291 | P56: 9.122698106 | Q56: 83.29946989 | R56: 7.387415266 | S56: 39 | T56: 23.47743811 | U56: 204.8512084 | V56: 8.090169944 | W56: 0 | X56: 0 | Y56: 0
I57: 38 | J57: 37 | K57: 46.56244174 | L57: 84.46929014 | M57: 33.45179068 | N57: 3.548209318 | O57: 6.548209318 | P57: 9.632808263 | Q57: 83.91823391 | R57: 8.082885861 | S57: 40 | T57: 25.14947625 | U57: 209.1517158 | V57: 7.9863551 | W57: 0 | X57: 0 | Y57: 0
I58: 39 | J58: 38 | K58: 47.79249651 | L58: 85.1535244 | M58: 34.14235352 | N58: 3.857646482 | O58: 6.857646482 | P58: 10.16758215 | Q58: 84.5443256 | R58: 8.838544319 | S58: 41 | T58: 26.94435692 | U58: 213.7100968 | V58: 7.880107536 | W58: 0 | X58: 0 | Y58: 0
I59: 40 | J59: 39 | K59: 49.02255127 | L59: 85.84993028 | M59: 34.82181019 | N59: 4.178189815 | O59: 7.178189815 | P59: 10.72742668 | Q59: 85.17706761 | R59: 9.659018366 | S59: =J59+$L$13/2 -> 42 | T59: 28.87035288 | U59: 218.5425248 | V59: 7.771459615 | W59: 0 | X59: 0 | Y59: 0
I60: 41 | J60: 40 | K60: 50.25260603 | L60: 86.55821399 | M60: 35.49023995 | N60: 4.509760055 | O60: 7.509760055 | P60: 11.31273254 | Q60: 85.81577065 | R60: 10.54929376 | S60: 43 | T60: 30.93641972 | U60: 223.6665485 | V60: 7.660444431 | W60: 0 | X60: 0 | Y60: 0
I61: 42 | J61: 41 | K61: 51.4826608 | L61: 87.27808636 | M61: 36.14773152 | N61: 4.852268484 | O61: 7.852268484 | P61: 11.92387391 | Q61: 86.45973392 | R61: 11.51475119 | S61: 44 | T61: 33.15227075 | U61: 229.101241 | V61: 7.547095802 | W61: 0 | X61: 0 | Y61: 0
I62: 43 | J62: 42 | K62: 52.71271556 | L62: 88.00926302 | M62: 36.79438226 | N62: 5.205617743 | O62: 8.205617743 | P62: 12.5612082 | Q62: 87.10824546 | R62: 12.5612082 | S62: 45 | T62: 35.52846199 | U62: 234.8673693 | V62: 7.431448255 | W62: 0 | X62: 0 | Y62: 0
I63: 44 | J63: 43 | K63: 53.94277033 | L63: 88.75146459 | M63: 37.43029739 | N63: 5.569702605 | O63: 8.569702605 | P63: 13.22507573 | Q63: 87.76058249 | R63: 13.69496682 | S63: 46 | T63: 38.07648852 | U63: 240.9875871 | V63: 7.313537016 | W63: 0 | X63: 0 | Y63: 0
I64: 45 | J64: 44 | K64: 55.17282509 | L64: 89.50441679 | M64: 38.05558927 | N64: 5.944410731 | O64: 8.944410731 | P64: 13.91579951 | Q64: 88.41601183 | R64: 14.92286797 | S64: 47 | T64: 40.80889436 | U64: 247.486654 | V64: 7.193398003 | W64: 0 | X64: 0 | Y64: 0
I65: 46 | J65: 45 | K65: 56.40287985 | L65: 90.2678506 | M65: 38.67037662 | N65: 6.329623378 | O65: 9.329623378 | P65: 14.63368495 | Q65: 89.07379029 | R65: 16.25235365 | S65: 48 | T65: 43.739398 | U65: 254.3916859 | V65: 7.071067812 | W65: 0 | X65: 0 | Y65: 0
I66: 47 | J66: 46 | K66: 57.63293462 | L66: 91.04150234 | M66: 39.27478392 | N66: 6.725216084 | O66: 9.725216084 | P66: 15.37901963 | Q66: 89.73316502 | R66: 17.69153832 | S66: 49 | T66: 46.88303628 | U66: 261.7324429 | V66: 6.946583705 | W66: 0 | X66: 0 | Y66: 0
I67: 48 | J67: 47 | K67: 58.86298938 | L67: 91.82511375 | M67: 39.86894069 | N67: 7.13105931 | O67: 10.13105931 | P67: 16.15207303 | Q67: 90.39337394 | R67: 19.24929107 | S67: 50 | T67: 50.25632975 | U67: 269.5416598 | V67: 6.819983601 | W67: 0 | X67: 0 | Y67: 0
I68: 49 | J68: 48 | K68: 60.09304415 | L68: 92.61843203 | M68: 40.45298094 | N68: 7.547019056 | O68: 10.54701906 | P68: 16.95309635 | Q68: 91.05364614 | R68: 20.93533048 | S68: 51 | T68: 53.87747352 | U68: 277.8554268 | V68: 6.691306064 | W68: 0 | X68: 0 | Y68: 0
I69: 50 | J69: =J68+$K$17 -> 49 | K69: 61.32309891 | L69: 93.42120988 | M69: 41.02704257 | N69: 7.972957433 | O69: 10.97295743 | P69: 17.78232222 | Q69: 91.71320228 | R69: 22.76033453 | S69: 52 | T69: 57.7665582 | U69: 286.7136318 | V69: 6.56059029 | W69: 0 | X69: 0 | Y69: 0
I70: 51 | J70: =J69+$K$17 -> 50 | K70: 62.55315368 | L70: 94.23320556 | M70: 41.59126679 | N70: 8.408733211 | O70: 11.40873321 | P70: 18.63996453 | Q70: 92.37125502 | R70: 24.73606841 | S70: 53 | T70: 61.9458266 | U70: 296.1604735 | V70: 6.427876097 | W70: 0 | X70: 0 | Y70: 0
I71: 52 | J71: =J70+$K$17 -> 51 | K71: 63.78320844 | L71: 95.05418284 | M71: 42.14579768 | N71: 8.854202323 | O71: 11.85420232 | P71: 19.52621821 | Q71: 93.0270094 | R71: 26.87553372 | S71: 54 | T71: 66.43997323 | U71: 306.2450595 | V71: 6.29320391 | W71: 0 | X71: 0 | Y71: 0
I72: 53 | J72: 52 | K72: 65.0132632 | L72: 95.883911 | M72: 42.69078166 | N72: 9.309218343 | O72: 12.30921834 | P72: 20.44125902 | Q72: 93.67966331 | R72: 29.19314333 | S72: 55 | T72: 71.27649509 | U72: 317.0221084 | V72: 6.156614753 | W72: 0 | X72: 0 | Y72: 0
I73: 54 | J73: 53 | K73: 66.24331797 | L73: 96.72216484 | M73: 43.22636706 | N73: 9.773632936 | O73: 12.77363294 | P73: 21.38524339 | Q73: 94.3284079 | R73: 31.70492715 | S73: 56 | T73: 76.48610436 | U73: 328.5527745 | V73: 6.018150232 | W73: 0 | X73: 0 | Y73: 0
I74: 55 | J74: 54 | K74: 67.47337273 | L74: 97.56872462 | M74: 43.75270374 | N74: 10.24729626 | O74: 13.24729626 | P74: 22.35830818 | Q74: 94.972428 | R74: 34.42877542 | S74: 57 | T74: 82.10321606 | U74: 340.9056229 | V74: 5.877852523 | W74: 0 | X74: 0 | Y74: 0
I75: 56 | J75: 55 | K75: 68.7034275 | L75: 98.42337601 | M75: 44.26994263 | N75: 10.73005737 | O75: 13.73005737 | P75: 23.3605706 | Q75: 95.61090255 | R75: 37.38472775 | S75: 58 | T75: 88.16652717 | U75: 354.1577878 | V75: 5.735764364 | W75: 0 | X75: 0 | Y75: 0
I76: 57 | J76: 56 | K76: 69.93348226 | L76: 99.28591006 | M76: 44.77823545 | N76: 11.22176455 | O76: 14.22176455 | P76: 24.39212797 | Q76: 96.2430051 | R76: 40.59531811 | S76: 59 | T76: 94.71970775 | U76: 368.3963542 | V76: 5.591929035 | W76: 0 | X76: 0 | Y76: 0
I77: 58 | J77: 57 | K77: 71.16353703 | L77: 100.1561231 | M77: 45.27773435 | N77: 11.72226565 | O77: 14.72226565 | P77: 25.45305759 | Q77: 96.86790417 | R77: 44.08598895 | S77: 60 | T77: 101.8122304 | U77: 383.7200166 | V77: 5.44639035 | W77: 0 | X77: 0 | Y77: 0
I78: 59 | J78: 58 | K78: 72.39359179 | L78: 101.0338168 | M78: 45.7685916 | N78: 12.2314084 | O78: 15.2314084 | P78: 26.54341662 | Q78: 97.48476375 | R78: 47.88559116 | S78: 61 | T78: 109.5003709 | U78: 400.2410807 | V78: 5.299192642 | W78: 0 | X78: 0 | Y78: 0
I79: 60 | J79: 59 | K79: 73.62364655 | L79: 101.9187977 | M79: 46.25095932 | N79: 12.74904068 | O79: 15.74904068 | P79: 27.66324191 | Q79: 98.09274374 | R79: 52.02699118 | S79: 62 | T79: 117.8484241 | U79: 418.0878939 | V79: 5.150380749 | W79: 0 | X79: 0 | Y79: 0
I80: 61 | J80: 60 | K80: 74.85370132 | L80: 102.8108778 | M80: 46.72498924 | N80: 13.27501076 | O80: 16.27501076 | P80: 28.81254992 | Q80: 98.69100042 | R80: 56.54781316 | S80: 63 | T80: 126.9301888 | U80: 437.407816 | V80: 5 | W80: 0 | X80: 0 | Y80: 0
I81: 62 | J81: 61 | K81: 76.08375608 | L81: 103.7098739 | M81: 47.19083245 | N81: 13.80916755 | O81: 16.80916755 | P81: 29.99133656 | Q81: 99.27868687 | R81: 61.49135257 | S81: 64 | T81: 136.8307964 | U81: 458.3708753 | V81: 4.848096202 | W81: 0 | X81: 0 | Y81: 0
I82: 63 | J82: 62 | K82: 77.31381085 | L82: 104.6156076 | M82: 47.6486392 | N82: 14.3513608 | O82: 17.3513608 | P82: 31.19957712 | Q82: 99.85495346 | R82: 66.90770906 | S82: 65 | T82: 147.6489776 | U82: 481.1743026 | V82: 4.694715628 | W82: 0 | X82: 0 | Y82: 0
I83: 64 | J83: 63 | K83: 78.54386561 | L83: 105.5279054 | M83: 48.09855871 | N83: 14.90144129 | O83: 17.90144129 | P83: 32.43722616 | Q83: 100.4189483 | R83: 72.85520281 | S83: 66 | T83: 159.4998961 | U83: 506.0481984 | V83: 4.539904997 | W83: 0 | X83: 0 | Y83: 0
I84: 65 | J84: 64 | K84: 79.77392037 | L84: 106.4465987 | M84: 48.54073898 | N84: =J84-M84 -> 15.45926102 | O84: =N84+$L$13/2 -> 18.45926102 | P84: 33.70421743 | Q84: 100.9698177 | R84: =P84/TAN((90-(J84+$L$13/2))*PI()/180) -> 79.40216038 | S84: 67 | T84: =P84/SIN((90-(J84+$L$13/2))*PI()/180)*2 -> 172.5187218 | U84: 533.2626781 | V84: =COS(J84*PI()/180)*$C$9/2*2 -> 4.383711468 | W84: =IF(AND(T84<$C$9,T85>$C$9),"1","0") -> 0 | X84: =IF(AND(T84>$C$9,T83<$C$9),"1","0") -> 0 | Y84: 0
I85: 66 | J85: 65 | K85: =$C$19/360*(J85+$C$21) -> 81.00397514 | L85: =SQRT(K85^2+($C$18/2)^2) -> 107.3715232 | M85: =ATAN(K85/($C$18/2))*180/PI() -> 48.97532668 | N85: 16.02467332 | O85: 19.02467332 | P85: =SIN(O85*PI()/180)*L85 -> 35.00046379 | Q85: =COS(O85*PI()/180)*L85 -> 101.5067068 | R85: 86.62918779 | S85: =J85+$L$13/2 -> 68 | T85: 186.8651775 | U85: =(Q85+R85+T85/2)*2 -> 563.1369666 | V85: 4.226182617 | W85: 0 | X85: 0 | Y85: 0
I86: 67 | J86: 66 | K86: 82.2340299 | L86: 108.3025192 | M86: 49.40246694 | N86: 16.59753306 | O86: 19.59753306 | P86: 36.32585715 | Q86: 102.0287595 | R86: 94.63209322 | S86: 69 | T86: 202.7293858 | U86: 596.0510913 | V86: 4.067366431 | W86: 0 | X86: 0 | Y86: 0
I87: 68 | J87: 67 | K87: 83.46408467 | L87: 109.2394316 | M87: 49.8223033 | N87: 17.1776967 | O87: 20.1776967 | P87: 37.68026842 | Q87: 102.5351198 | R87: 103.5256866 | S87: 70 | T87: 220.3394692 | U87: 632.4610821 | V87: 3.907311285 | W87: 0 | X87: 0 | Y87: 0
I88: 69 | J88: 68 | K88: 84.69413943 | L88: 110.1821095 | M88: 50.23497758 | N88: 17.76502242 | O88: 20.76502242 | P88: 39.06354746 | Q88: 103.0249315 | R88: 113.4487794 | S88: 71 | T88: 239.9715508 | U88: 672.9189727 | V88: 3.746065934 | W88: 0 | X88: 0 | Y88: 0
I89: 70 | J89: 69 | K89: 85.9241942 | L89: 111.130406 | M89: 50.64062975 | N89: 18.35937025 | O89: 21.35937025 | P89: 40.47552304 | Q89: 103.497339 | R89: 124.5708509 | S89: 72 | T89: 261.963088 | U89: 718.0994678 | V89: 3.583679495 | W89: 0 | X89: 0 | Y89: 0
I90: 71 | J90: 70 | K90: 87.15424896 | L90: 112.0841787 | M90: 51.03939789 | N90: 18.96060211 | O90: 21.96060211 | P90: 41.91600284 | Q90: 103.9514878 | R90: 137.1010676 | S90: 73 | T90: 286.7309125 | U90: 768.8360233 | V90: 3.420201433 | W90: 0 | X90: 0 | Y90: 0

Sheet Evolvente berechnen (3)
I1: Dezimalwinkel in Bogenmass= WertxPi()/180
I2: Bogenmass in Dezimalwinkel=Wertx180/Pi()
B3: Zahnradmessung
R4: Solver | W4: Formelspeicher
R5: Bogenlänge Bl: | T5: =$C$19/360*(T10+$C$21) -> 35.7345608
B6: Gegeben: | R6: Strecke a: | T6: 5.939095506 | W6: =SIN($T$13*PI()/180)*$T$8 -> 5.939095506
B7: Modul: | C7: 5 | P7: Werte für Solverlauf | R7: Strecke b: | T7: 78.79521544 | W7: =COS($T$13*PI()/180)*$T$8 -> 78.79521544
B8: Zähnezahl | C8: 30 | J8: Öffnungswinkel: | L8: =360/(C8*2) -> 6 | R8: Strecke c: | T8: 79.01872457 | W8: =SQRT($T$5^2+($C$18/2)^2) -> 79.01872457
B9: Messkugeldurchmesser: | C9: 10 | J9: Winkelkorrektur von Zahn und Zahnlücke: | L9: 0 | R9: Strecke b2: | T9: 3.596452608 | W9: =$T$6/TAN((90-($T$10+$L$13/2))*PI()/180) -> 3.596452608
B10: Eingriffswinkel | C10: 20 | R10: Teilungswinkel: | T10: 28.1972367 | W10: 28.1972367
O11: Solverlauf durchführen | P11: Wichtiger Hinweis! | R11: Winkel Alpha 2: | T11: =ATAN(T5/($C$18/2))*180/PI() -> 26.88678609
K12: Breite am Teilkreisdurchm. | L12: Winkel | R12: Winkel Alpha 3: | T12: =T10-T11 -> 1.310450603
B13: Gesucht: | J13: Zahnlücke: | K13: =TAN((L8+L9)/2*PI()/180)*(C20/2)*2 -> 7.861166892 | L13: =L8+L9 -> 6 | M13: (Alpha z) | R13: Winkel alpha 4: | T13: =T12+$L$13/2 -> 4.310450603
B14: Öffnungswinkel | C14: =360/C20 -> 2.4 | J14: Zahn: | K14: =TAN((L8-L9)/2*PI()/180)*(C20/2)*2-L11 -> 7.861166892 | L14: =L8-L9 -> 6 | R14: Zahnlückenwinkel: | T14: =L13 -> 6
B15: Ankathete a | C15: =SIN((C14/2)*PI()/180)*C20/2 -> 1.570681491 | R15: Kugel Ø | T15: =$T$6/SIN((90-($T$10+$T$14/2))*PI()/180)*2 -> 13.88629926
B16: Gegenkathete b | C16: =COS((C14/2)*PI()/180)*C20/2 -> 74.98355126 | J16: Startwinkel | K16: 0 | M16: Winkel für Vektor | N16: =L9 -> 0 | O16: ±Grad | R16: Zweikugelmaß Mdk: | T16: =(T7+T9+T15/2)*2 -> 178.6696354
B17: Berührpunktabstand Bab | C17: =C15*2 -> 3.141362983 | J17: Inkrement | K17: 1
B18: Grundkreisdurchmesser dg | C18: =COS(C10*PI()/180)*C20 -> 140.9538931 | Q18: dm/2 | T18: DM | U18: Mdk | V18: Kugel-XM | W18: Trefferindikator
B19: Teilkreisumfang | C19: =C18*PI() -> 442.8197151 | F19: Winkel | G19: Bogenlänge | J19: Teilungsw. Alpha | K19: Bogenlänge Bl | L19: Strecke c | M19: Winkel alpha 2 | N19: Winkel alpha 3 | O19: Winkel alpha 4 | P19: Strecke a | Q19: Strecke b | R19: Strecke b2 | S19: Vektorwinkel | T19: Kugel Ø | U19: Prüfmaß | W19: Untergrenze | X19: Obergrenze
B20: Teilkreisdurchmesser: | C20: =C8*C7 -> 150 | E20: 1 | F20: 1 | G20: =$C$19/360*F20 -> 1.230054764 | I20: 1 | J20: =K16 -> 0 | K20: =$C$19/360*(J20+$C$21) -> 1.050415465 | L20: =SQRT(K20^2+($C$18/2)^2) -> 70.48477402 | M20: =ATAN(K20/($C$18/2))*180/PI() -> 0.8538950673 | N20: =J20-M20 -> -0.8538950673 | O20: =N20+$L$13/2 -> 2.146104933 | P20: =SIN(O20*PI()/180)*L20 -> 2.639502484 | Q20: =COS(O20*PI()/180)*L20 -> 70.43533485 | R20: =P20/TAN((90-(J20+$L$13/2))*PI()/180) -> 0.1383304636 | S20: =J20+$L$13/2 -> 3 | T20: =P20/SIN((90-(J20+$L$13/2))*PI()/180)*2 -> 5.286249589 | U20: =(Q20+R20+T20/2)*2 -> 146.4335802 | V20: =COS(J20*PI()/180)*$C$9/2*2 -> 10 | W20: =IF(AND(T20<$C$9,T21>$C$9),"1","0") -> 0 | X20: =IF(AND(T20>$C$9,T19<$C$9),"1","0") -> 0
B21: Korrektur inv alpha y | C21: =(TAN(C10*PI()/180)-(PI()/9))*180/PI() -> 0.8539582918 | E21: 2 | F21: 3 | G21: 3.690164293 | I21: 2 | J21: =J20+$K$17 -> 1 | K21: =$C$19/360*(J21+$C$21) -> 2.28047023 | L21: =SQRT(K21^2+($C$18/2)^2) -> 70.51383227 | M21: =ATAN(K21/($C$18/2))*180/PI() -> 1.853311655 | N21: -0.8533116547 | O21: 2.146688345 | P21: =SIN(O21*PI()/180)*L21 -> 2.641308154 | Q21: =COS(O21*PI()/180)*L21 -> 70.46434582 | R21: 0.1846982585 | S21: =J21+$L$13/2 -> 4 | T21: 5.295515918 | U21: =(Q21+R21+T21/2)*2 -> 146.5936041 | V21: 9.998476952 | W21: 0 | X21: 0
B22: Bogenlänge | C22: =C19/360*C21 -> 1.050415465 | E22: 3 | F22: 5 | G22: 6.150273821 | I22: 3 | J22: =J21+$K$17 -> 2 | K22: 3.510524994 | L22: 70.56432372 | M22: 2.85160145 | N22: -0.8516014498 | O22: 2.14839855 | P22: 2.645304238 | Q22: 70.51472291 | R22: 0.2314341324 | S22: 5 | T22: 5.31081774 | U22: 146.8031318 | V22: 9.99390827 | W22: 0 | X22: 0
B23: dp-Wert | C23: =C8/C20 -> 0.2 | E23: 4 | F23: 10 | G23: 12.30054764 | I23: 4 | J23: 3 | K23: 4.740579758 | L23: 70.63620242 | M23: 3.848161633 | N23: -0.848161633 | O23: 2.151838367 | P23: 2.652236554 | Q23: 70.58639199 | R23: 0.2787612947 | S23: 6 | T23: 5.333691628 | U23: 147.0639982 | V23: 9.986295348 | W23: 0 | X23: 0
E24: 5 | F24: 20 | G24: 24.60109528 | I24: 5 | J24: 4 | K24: 5.970634522 | L24: 70.72940317 | M24: 4.842395653 | N24: -0.8423956529 | O24: 2.157604347 | P24: 2.662848885 | Q24: 70.6792594 | R24: 0.326956731 | S24: 7 | T24: 5.36569283 | U24: 147.3781251 | V24: 9.975640503 | W24: 0 | X24: 0
B25: Kugelabschnittsrechner | E25: 6 | F25: 30 | G25: 36.90164293 | I25: 6 | J25: 5 | K25: 7.200689286 | L25: 70.84384181 | M25: 5.833715337 | N25: -0.8337153367 | O25: 2.166284663 | P25: 2.677882526 | Q25: 70.79321202 | R25: 0.3763518454 | S25: 8 | T25: 5.408399221 | U25: 147.7475269 | V25: 9.961946981 | W25: 0 | X25: 0
B26: Winkel: | C26: 20 | E26: 7 | F26: 40 | G26: 49.20219057 | I26: 7 | J26: 6 | K26: 8.430744051 | L26: 70.97941562 | M26: 6.821542925 | N26: -0.8215429253 | O26: 2.178457075 | P26: 2.698075831 | Q26: 70.92811733 | R26: 0.4273332305 | S26: 9 | T26: 5.463415372 | U26: 148.1743165 | V26: 9.945218954 | W26: 0 | X26: 0
B27: Kugelabschnitt l: | C27: =COS(C26*PI()/180)*C9/2*2 -> 9.396926208 | E27: 8 | F27: 50 | G27: 61.50273821 | I27: 8 | J27: 7 | K27: 9.660798815 | L27: 71.13600375 | M27: 7.805313018 | N27: -0.805313018 | O27: 2.194686982 | P27: 2.724163764 | Q27: 71.08382349 | R27: 0.4803435715 | S27: 10 | T27: 5.532376763 | U27: 148.6607109 | V27: 9.925461516 | W27: 0 | X27: 0
E28: 9 | F28: 60 | G28: 73.80328585 | I28: 9 | J28: 8 | K28: 10.89085358 | L28: 71.31346779 | M28: 8.784474408 | N28: -0.7844744075 | O28: 2.215525592 | P28: 2.756877446 | Q28: 71.26015938 | R28: 0.5358826902 | S28: 11 | T28: 5.616954161 | U28: 149.2090383 | V28: 9.902680687 | W28: 0 | X28: 0
E29: 10 | F29: 70 | G29: 86.10383349 | I29: 10 | J29: 9 | K29: 12.12090834 | L29: 71.5116523 | M29: 9.758491795 | N29: -0.758491795 | O29: 2.241508205 | P29: 2.796943708 | Q29: 71.45693473 | R29: 0.5945087378 | S29: 12 | T29: 5.718858189 | U29: 149.8217451 | V29: 9.876883406 | W29: 0 | X29: 0
E30: 11 | F30: 80 | G30: 98.40438114 | I30: 11 | J30: 10 | K30: 13.35096311 | L30: 71.73038556 | M30: 10.72684737 | N30: -0.7268473707 | O30: 2.273152629 | P30: 2.845084647 | Q30: 71.67394021 | R30: 0.6568395462 | S30: 13 | T30: 5.839844121 | U30: 150.5014036 | V30: 9.84807753 | W30: 0 | X30: 0
E31: 12 | F31: 90 | G31: 110.7049288 | I31: 12 | J31: 11 | K31: 14.58101787 | L31: 71.96948019 | M31: 11.68904225 | N31: -0.6890422516 | O31: 2.310957748 | P31: 2.902017182 | Q31: 71.91094753 | R31: 0.7235541482 | S31: 14 | T31: 5.981716921 | U31: 151.2507203 | V31: 9.816271834 | W31: 0 | X31: 0
I32: 13 | J32: 12 | K32: 15.81107264 | L32: 72.22873399 | M32: 12.64459777 | N32: -0.6445977676 | O32: 2.355402232 | P32: 2.96845261 | Q32: 72.16770956 | R32: 0.7953944796 | S32: 15 | T32: 6.146336559 | U32: 152.0725446 | V32: 9.781476007 | W32: 0 | X32: 0
I33: 14 | J33: 13 | K33: 17.0411274 | L33: 72.50793073 | M33: 13.59305659 | N33: -0.5930565899 | O33: 2.40694341 | P33: 3.04509617 | Q33: 72.44396047 | R33: 0.873167276 | S33: 16 | T33: 6.335623656 | U33: 152.9698791 | V33: 9.743700648 | W33: 0 | X33: 0
I34: 15 | J34: 14 | K34: 18.27118216 | L34: 72.80684098 | M34: 14.5339837 | N34: -0.5339837001 | O34: 2.4660163 | P34: 3.132646608 | Q34: 72.73941586 | R34: 0.9577461824 | S34: 17 | T34: 6.551565469 | U34: 153.9458895 | V34: 9.702957263 | W34: 0 | X34: 0
I35: 16 | J35: 15 | K35: 19.50123693 | L35: 73.12522299 | M35: 15.4669672 | N35: -0.4669671957 | O35: 2.533032804 | P35: 3.231795742 | Q35: 73.0537729 | R35: 1.050074091 | S35: 18 | T35: 6.796222278 | U35: 155.0039163 | V35: 9.659258263 | W35: 0 | X35: 0
I36: 17 | J36: 16 | K36: 20.73129169 | L36: 73.4628236 | M36: 16.39161894 | N36: -0.3916189352 | O36: 2.608381065 | P36: 3.343228031 | Q36: 73.3867105 | R36: 1.151165729 | S36: 19 | T36: 7.071734216 | U36: 156.1474867 | V36: 9.612616959 | W36: 0 | X36: 0
I37: 18 | J37: 17 | K37: 21.96134646 | L37: 73.81937913 | M37: 17.30757502 | N37: -0.3075750229 | O37: 2.692424977 | P37: 3.467620155 | Q37: 73.73788948 | R37: 1.26211052 | S37: 20 | T37: 7.380328585 | U37: 157.3803286 | V37: 9.56304756 | W37: 0 | X37: 0
I38: 19 | J38: 18 | K38: 23.19140122 | L38: 74.19461629 | M38: 18.21449614 | N38: -0.2144961391 | O38: 2.785503861 | P38: 3.605640586 | Q38: 74.10695273 | R38: 1.384075744 | S38: 21 | T38: 7.724327724 | U38: 158.7063847 | V38: 9.510565163 | W38: 0 | X38: 0
I39: 20 | J39: 19 | K39: 24.42145599 | L39: 74.58825315 | M39: 19.11206772 | N39: -0.112067721 | O39: 2.887932279 | P39: 3.75794917 | Q39: 74.4935254 | R39: 1.51831002 | S39: 22 | T39: 8.106157483 | U39: 160.1298283 | V39: 9.455185756 | W39: 0 | X39: 0
I40: 21 | J40: 20 | K40: 25.65151075 | L40: 75 | M40: 20 | N40: 0 | O40: 3 | P40: 3.925196718 | Q40: 74.89721511 | R40: 1.666147156 | S40: 23 | T40: 8.528356376 | U40: 161.6550809 | V40: 9.396926208 | W40: 0 | X40: 0
I41: 22 | J41: 21 | K41: 26.88156551 | L41: 75.42956026 | M41: 20.87802791 | N41: 0.1219720946 | O41: 3.121972095 | P41: 4.108024588 | Q41: 75.31761212 | R41: 1.829010387 | S41: 24 | T41: 8.993585495 | U41: 163.2868305 | V41: 9.335804265 | W41: 0 | X41: 0
I42: 23 | J42: 22 | K42: 28.11162028 | L42: 75.87663139 | M42: 21.74591084 | N42: 0.2540891578 | O42: 3.254089158 | P42: 4.307064284 | Q42: 75.75428957 | R42: 2.00841706 | S42: =J42+$L$13/2 -> 25 | T42: 9.504639252 | U42: 165.0300525 | V42: 9.271838546 | W42: 1 | X42: 0
I43: 24 | J43: 23 | K43: 29.34167504 | L43: 76.34090575 | M43: 22.60343235 | N43: 0.3965676467 | O43: 3.396567647 | P43: 4.522937049 | Q43: 76.20680371 | R43: 2.205983795 | S43: 26 | T43: 10.06445707 | U43: 166.8900321 | V43: 9.205048535 | W43: 0 | X43: 1
I44: 25 | J44: 24 | K44: 30.57172981 | L44: 76.82207144 | M44: 23.45039968 | N44: 0.5496003238 | O44: 3.549600324 | P44: 4.756253475 | Q44: 76.67469408 | R44: 2.42343219 | S44: 27 | T44: 10.67613614 | U44: 168.8723887 | V44: 9.135454576 | W44: 0 | X44: 0
I45: 26 | J45: 25 | K45: 31.80178457 | L45: 77.3198131 | M45: 24.2866432 | N45: 0.7133567955 | O45: 3.713356796 | P45: 5.007613106 | Q45: 77.15748382 | R45: 2.662595119 | S45: 28 | T45: 11.34294526 | U45: 170.9831031 | V45: 9.06307787 | W45: 0 | X45: 0
I46: 27 | J46: 26 | K46: 33.03183933 | L46: 77.83381274 | M46: 25.11201587 | N46: 0.8879841344 | O46: 3.887984134 | P46: 5.277604052 | Q46: 77.65467984 | R46: 2.925423696 | S46: 29 | T46: 12.06834012 | U46: 173.2285472 | V46: 8.987940463 | W46: 0 | X46: 0
I47: 28 | J47: 27 | K47: 34.2618941 | L47: 78.36375044 | M47: 25.92639243 | N47: 1.073607575 | O47: 4.073607575 | P47: 5.566802608 | Q47: 78.16577315 | R47: 3.213994984 | S47: 30 | T47: 12.85597994 | U47: 175.6155162 | V47: 8.910065242 | W47: 0 | X47: 0
I48: 29 | J48: 28 | K48: 35.49194886 | L48: 78.90930509 | M48: 26.72966873 | N48: 1.270331272 | O48: 4.270331272 | P48: 5.875772878 | Q48: 78.69023906 | R48: 3.530520529 | S48: 31 | T48: 13.70974575 | U48: 178.1512649 | V48: 8.829475929 | W48: 0 | X48: 0
I49: 30 | J49: 29 | K49: 36.72200363 | L49: 79.47015507 | M49: 27.52176089 | N49: 1.478239113 | O49: 4.478239113 | P49: 6.205066403 | Q49: 79.2275375 | R49: 3.877355822 | S49: 32 | T49: 14.63376059 | U49: 180.8435472 | V49: 8.746197071 | W49: 0 | X49: 0
I50: 31 | J50: 30 | K50: 37.95205839 | L50: 80.04597886 | M50: 28.30260443 | N50: 1.697395571 | O50: 4.697395571 | P50: 6.555221799 | Q50: 79.77711326 | R50: 4.257010811 | S50: 33 | T50: 15.6324117 | U50: 183.7006598 | V50: 8.660254038 | W50: 0 | X50: 0
I51: 32 | J51: 31 | K51: 39.18211316 | L51: 80.6364557 | M51: 29.07215341 | N51: 1.927846591 | O51: 4.927846591 | P51: 6.926764396 | Q51: 80.33839632 | R51: 4.672161579 | S51: 34 | T51: 16.71037508 | U51: 186.7314909 | V51: 8.571673007 | W51: 0 | X51: 0
I52: 33 | J52: 32 | K52: 40.41216792 | L52: 81.24126607 | M52: 29.8303795 | N52: 2.169620503 | O52: 5.169620503 | P52: 7.320205886 | Q52: 80.91080211 | R52: 5.125663343 | S52: 35 | T52: 17.87264266 | U52: =(Q52+R52+T52/2)*2 -> 189.9455736 | V52: =COS(J52*PI()/180)*$C$9/2*2 -> 8.480480962 | W52: =IF(AND(T52<$C$9,T53>$C$9),"1","0") -> 0 | X52: =IF(AND(T52>$C$9,T51<$C$9),"1","0") -> 0
I53: 34 | J53: 33 | K53: 41.64222268 | L53: 81.86009227 | M53: 30.57727105 | N53: 2.422728952 | O53: 5.422728952 | P53: 7.736043979 | Q53: 81.49373184 | R53: 5.620564949 | S53: 36 | T53: 19.12455247 | U53: 193.3531461 | V53: 8.386705679 | W53: 0 | X53: 0
I54: 35 | J54: 34 | K54: 42.87227745 | L54: 82.49261888 | M54: 31.31283217 | N54: 2.687167827 | O54: 5.687167827 | P54: 8.174762058 | Q54: 82.08657281 | R54: 6.160125058 | S54: 37 | T54: 20.47182214 | U54: 196.9652179 | V54: 8.290375726 | W54: 0 | X54: 0
I55: 36 | J55: 35 | K55: 44.10233221 | L55: 83.1385332 | M55: 32.03708179 | N55: 2.962918207 | O55: 5.962918207 | P55: 8.636828852 | Q55: 82.68869869 | R55: 6.747830241 | S55: 38 | T55: 21.92058627 | U55: 200.7936441 | V55: 8.191520443 | W55: 0 | X55: 0
I56: 37 | J56: 36 | K56: 45.33238698 | L56: 83.79752565 | M56: 32.75005271 | N56: 3.249947291 | O56: 6.249947291 | P56: 9.122698106 | Q56: 83.29946989 | R56: 7.387415266 | S56: 39 | T56: 23.47743811 | U56: 204.8512084 | V56: 8.090169944 | W56: 0 | X56: 0
I57: 38 | J57: 37 | K57: 46.56244174 | L57: 84.46929014 | M57: 33.45179068 | N57: 3.548209318 | O57: 6.548209318 | P57: 9.632808263 | Q57: 83.91823391 | R57: 8.082885861 | S57: 40 | T57: 25.14947625 | U57: 209.1517158 | V57: 7.9863551 | W57: 0 | X57: 0
I58: 39 | J58: 38 | K58: 47.79249651 | L58: 85.1535244 | M58: 34.14235352 | N58: 3.857646482 | O58: 6.857646482 | P58: 10.16758215 | Q58: 84.5443256 | R58: 8.838544319 | S58: 41 | T58: 26.94435692 | U58: 213.7100968 | V58: 7.880107536 | W58: 0 | X58: 0
I59: 40 | J59: 39 | K59: 49.02255127 | L59: 85.84993028 | M59: 34.82181019 | N59: 4.178189815 | O59: 7.178189815 | P59: 10.72742668 | Q59: 85.17706761 | R59: 9.659018366 | S59: =J59+$L$13/2 -> 42 | T59: 28.87035288 | U59: 218.5425248 | V59: 7.771459615 | W59: 0 | X59: 0
I60: 41 | J60: 40 | K60: 50.25260603 | L60: 86.55821399 | M60: 35.49023995 | N60: 4.509760055 | O60: 7.509760055 | P60: 11.31273254 | Q60: 85.81577065 | R60: 10.54929376 | S60: 43 | T60: 30.93641972 | U60: 223.6665485 | V60: 7.660444431 | W60: 0 | X60: 0
I61: 42 | J61: 41 | K61: 51.4826608 | L61: 87.27808636 | M61: 36.14773152 | N61: 4.852268484 | O61: 7.852268484 | P61: 11.92387391 | Q61: 86.45973392 | R61: 11.51475119 | S61: 44 | T61: 33.15227075 | U61: 229.101241 | V61: 7.547095802 | W61: 0 | X61: 0
I62: 43 | J62: 42 | K62: 52.71271556 | L62: 88.00926302 | M62: 36.79438226 | N62: 5.205617743 | O62: 8.205617743 | P62: 12.5612082 | Q62: 87.10824546 | R62: 12.5612082 | S62: 45 | T62: 35.52846199 | U62: 234.8673693 | V62: 7.431448255 | W62: 0 | X62: 0
I63: 44 | J63: 43 | K63: 53.94277033 | L63: 88.75146459 | M63: 37.43029739 | N63: 5.569702605 | O63: 8.569702605 | P63: 13.22507573 | Q63: 87.76058249 | R63: 13.69496682 | S63: 46 | T63: 38.07648852 | U63: 240.9875871 | V63: 7.313537016 | W63: 0 | X63: 0
I64: 45 | J64: 44 | K64: 55.17282509 | L64: 89.50441679 | M64: 38.05558927 | N64: 5.944410731 | O64: 8.944410731 | P64: 13.91579951 | Q64: 88.41601183 | R64: 14.92286797 | S64: 47 | T64: 40.80889436 | U64: 247.486654 | V64: 7.193398003 | W64: 0 | X64: 0
I65: 46 | J65: 45 | K65: 56.40287985 | L65: 90.2678506 | M65: 38.67037662 | N65: 6.329623378 | O65: 9.329623378 | P65: 14.63368495 | Q65: 89.07379029 | R65: 16.25235365 | S65: 48 | T65: 43.739398 | U65: 254.3916859 | V65: 7.071067812 | W65: 0 | X65: 0
I66: 47 | J66: 46 | K66: 57.63293462 | L66: 91.04150234 | M66: 39.27478392 | N66: 6.725216084 | O66: 9.725216084 | P66: 15.37901963 | Q66: 89.73316502 | R66: 17.69153832 | S66: 49 | T66: 46.88303628 | U66: 261.7324429 | V66: 6.946583705 | W66: 0 | X66: 0
I67: 48 | J67: 47 | K67: 58.86298938 | L67: 91.82511375 | M67: 39.86894069 | N67: 7.13105931 | O67: 10.13105931 | P67: 16.15207303 | Q67: 90.39337394 | R67: 19.24929107 | S67: 50 | T67: 50.25632975 | U67: 269.5416598 | V67: 6.819983601 | W67: 0 | X67: 0
I68: 49 | J68: 48 | K68: 60.09304415 | L68: 92.61843203 | M68: 40.45298094 | N68: 7.547019056 | O68: 10.54701906 | P68: 16.95309635 | Q68: 91.05364614 | R68: 20.93533048 | S68: 51 | T68: 53.87747352 | U68: 277.8554268 | V68: 6.691306064 | W68: 0 | X68: 0
I69: 50 | J69: =J68+$K$17 -> 49 | K69: 61.32309891 | L69: 93.42120988 | M69: 41.02704257 | N69: 7.972957433 | O69: 10.97295743 | P69: 17.78232222 | Q69: 91.71320228 | R69: 22.76033453 | S69: 52 | T69: 57.7665582 | U69: 286.7136318 | V69: 6.56059029 | W69: 0 | X69: 0
I70: 51 | J70: =J69+$K$17 -> 50 | K70: 62.55315368 | L70: 94.23320556 | M70: 41.59126679 | N70: 8.408733211 | O70: 11.40873321 | P70: 18.63996453 | Q70: 92.37125502 | R70: 24.73606841 | S70: 53 | T70: 61.9458266 | U70: 296.1604735 | V70: 6.427876097 | W70: 0 | X70: 0
I71: 52 | J71: =J70+$K$17 -> 51 | K71: 63.78320844 | L71: 95.05418284 | M71: 42.14579768 | N71: 8.854202323 | O71: 11.85420232 | P71: 19.52621821 | Q71: 93.0270094 | R71: 26.87553372 | S71: 54 | T71: 66.43997323 | U71: 306.2450595 | V71: 6.29320391 | W71: 0 | X71: 0
I72: 53 | J72: 52 | K72: 65.0132632 | L72: 95.883911 | M72: 42.69078166 | N72: 9.309218343 | O72: 12.30921834 | P72: 20.44125902 | Q72: 93.67966331 | R72: 29.19314333 | S72: 55 | T72: 71.27649509 | U72: 317.0221084 | V72: 6.156614753 | W72: 0 | X72: 0
I73: 54 | J73: 53 | K73: 66.24331797 | L73: 96.72216484 | M73: 43.22636706 | N73: 9.773632936 | O73: 12.77363294 | P73: 21.38524339 | Q73: 94.3284079 | R73: 31.70492715 | S73: 56 | T73: 76.48610436 | U73: 328.5527745 | V73: 6.018150232 | W73: 0 | X73: 0
I74: 55 | J74: 54 | K74: 67.47337273 | L74: 97.56872462 | M74: 43.75270374 | N74: 10.24729626 | O74: 13.24729626 | P74: 22.35830818 | Q74: 94.972428 | R74: 34.42877542 | S74: 57 | T74: 82.10321606 | U74: 340.9056229 | V74: 5.877852523 | W74: 0 | X74: 0
I75: 56 | J75: 55 | K75: 68.7034275 | L75: 98.42337601 | M75: 44.26994263 | N75: 10.73005737 | O75: 13.73005737 | P75: 23.3605706 | Q75: 95.61090255 | R75: 37.38472775 | S75: 58 | T75: 88.16652717 | U75: 354.1577878 | V75: 5.735764364 | W75: 0 | X75: 0
I76: 57 | J76: 56 | K76: 69.93348226 | L76: 99.28591006 | M76: 44.77823545 | N76: 11.22176455 | O76: 14.22176455 | P76: 24.39212797 | Q76: 96.2430051 | R76: 40.59531811 | S76: 59 | T76: 94.71970775 | U76: 368.3963542 | V76: 5.591929035 | W76: 0 | X76: 0
I77: 58 | J77: 57 | K77: 71.16353703 | L77: 100.1561231 | M77: 45.27773435 | N77: 11.72226565 | O77: 14.72226565 | P77: 25.45305759 | Q77: 96.86790417 | R77: 44.08598895 | S77: 60 | T77: 101.8122304 | U77: 383.7200166 | V77: 5.44639035 | W77: 0 | X77: 0
I78: 59 | J78: 58 | K78: 72.39359179 | L78: 101.0338168 | M78: 45.7685916 | N78: 12.2314084 | O78: 15.2314084 | P78: 26.54341662 | Q78: 97.48476375 | R78: 47.88559116 | S78: 61 | T78: 109.5003709 | U78: 400.2410807 | V78: 5.299192642 | W78: 0 | X78: 0
I79: 60 | J79: 59 | K79: 73.62364655 | L79: 101.9187977 | M79: 46.25095932 | N79: 12.74904068 | O79: 15.74904068 | P79: 27.66324191 | Q79: 98.09274374 | R79: 52.02699118 | S79: 62 | T79: 117.8484241 | U79: 418.0878939 | V79: 5.150380749 | W79: 0 | X79: 0
I80: 61 | J80: 60 | K80: 74.85370132 | L80: 102.8108778 | M80: 46.72498924 | N80: 13.27501076 | O80: 16.27501076 | P80: 28.81254992 | Q80: 98.69100042 | R80: 56.54781316 | S80: 63 | T80: 126.9301888 | U80: 437.407816 | V80: 5 | W80: 0 | X80: 0
I81: 62 | J81: 61 | K81: 76.08375608 | L81: 103.7098739 | M81: 47.19083245 | N81: 13.80916755 | O81: 16.80916755 | P81: 29.99133656 | Q81: 99.27868687 | R81: 61.49135257 | S81: 64 | T81: 136.8307964 | U81: 458.3708753 | V81: 4.848096202 | W81: 0 | X81: 0
I82: 63 | J82: 62 | K82: 77.31381085 | L82: 104.6156076 | M82: 47.6486392 | N82: 14.3513608 | O82: 17.3513608 | P82: 31.19957712 | Q82: 99.85495346 | R82: 66.90770906 | S82: 65 | T82: 147.6489776 | U82: 481.1743026 | V82: 4.694715628 | W82: 0 | X82: 0
I83: 64 | J83: 63 | K83: 78.54386561 | L83: 105.5279054 | M83: 48.09855871 | N83: 14.90144129 | O83: 17.90144129 | P83: 32.43722616 | Q83: 100.4189483 | R83: 72.85520281 | S83: 66 | T83: 159.4998961 | U83: 506.0481984 | V83: 4.539904997 | W83: 0 | X83: 0
I84: 65 | J84: 64 | K84: 79.77392037 | L84: 106.4465987 | M84: 48.54073898 | N84: =J84-M84 -> 15.45926102 | O84: =N84+$L$13/2 -> 18.45926102 | P84: 33.70421743 | Q84: 100.9698177 | R84: =P84/TAN((90-(J84+$L$13/2))*PI()/180) -> 79.40216038 | S84: 67 | T84: =P84/SIN((90-(J84+$L$13/2))*PI()/180)*2 -> 172.5187218 | U84: 533.2626781 | V84: =COS(J84*PI()/180)*$C$9/2*2 -> 4.383711468 | W84: =IF(AND(T84<$C$9,T85>$C$9),"1","0") -> 0 | X84: =IF(AND(T84>$C$9,T83<$C$9),"1","0") -> 0
I85: 66 | J85: 65 | K85: =$C$19/360*(J85+$C$21) -> 81.00397514 | L85: =SQRT(K85^2+($C$18/2)^2) -> 107.3715232 | M85: =ATAN(K85/($C$18/2))*180/PI() -> 48.97532668 | N85: 16.02467332 | O85: 19.02467332 | P85: =SIN(O85*PI()/180)*L85 -> 35.00046379 | Q85: =COS(O85*PI()/180)*L85 -> 101.5067068 | R85: 86.62918779 | S85: =J85+$L$13/2 -> 68 | T85: 186.8651775 | U85: =(Q85+R85+T85/2)*2 -> 563.1369666 | V85: 4.226182617 | W85: 0 | X85: 0
I86: 67 | J86: 66 | K86: 82.2340299 | L86: 108.3025192 | M86: 49.40246694 | N86: 16.59753306 | O86: 19.59753306 | P86: 36.32585715 | Q86: 102.0287595 | R86: 94.63209322 | S86: 69 | T86: 202.7293858 | U86: 596.0510913 | V86: 4.067366431 | W86: 0 | X86: 0
I87: 68 | J87: 67 | K87: 83.46408467 | L87: 109.2394316 | M87: 49.8223033 | N87: 17.1776967 | O87: 20.1776967 | P87: 37.68026842 | Q87: 102.5351198 | R87: 103.5256866 | S87: 70 | T87: 220.3394692 | U87: 632.4610821 | V87: 3.907311285 | W87: 0 | X87: 0
I88: 69 | J88: 68 | K88: 84.69413943 | L88: 110.1821095 | M88: 50.23497758 | N88: 17.76502242 | O88: 20.76502242 | P88: 39.06354746 | Q88: 103.0249315 | R88: 113.4487794 | S88: 71 | T88: 239.9715508 | U88: 672.9189727 | V88: 3.746065934 | W88: 0 | X88: 0
I89: 70 | J89: 69 | K89: 85.9241942 | L89: 111.130406 | M89: 50.64062975 | N89: 18.35937025 | O89: 21.35937025 | P89: 40.47552304 | Q89: 103.497339 | R89: 124.5708509 | S89: 72 | T89: 261.963088 | U89: 718.0994678 | V89: 3.583679495 | W89: 0 | X89: 0
I90: 71 | J90: 70 | K90: 87.15424896 | L90: 112.0841787 | M90: 51.03939789 | N90: 18.96060211 | O90: 21.96060211 | P90: 41.91600284 | Q90: 103.9514878 | R90: 137.1010676 | S90: 73 | T90: 286.7309125 | U90: 768.8360233 | V90: 3.420201433 | W90: 0 | X90: 0

Sheet Übersetzungen
C2: Übersetzungen
C6: Übersetzungsverhältnis | G6: Gesamtübersetzungsverhältbnis i
C7: Treibende Scheibe | D7: Drehzahl | E7: Durchmesser
C8: 10 (d19) | D8: =D27 -> 18.90208668 | E8: 100 | P8: =IF(E28>0,O9*B28,) -> 10.1576087
C9: 9 (d17) | D9: =D26 -> 165.3932584 | E9: 80 | O9: =IF(E27>0,N10*B27,) -> 12.69701087
C10: 8 (d15) | D10: =D25 -> 198.4719101 | E10: 500 | N10: =IF(E26>0,M11*B26,) -> 1.451086957
C11: 7 (d13) | D11: =D24 -> 103.5505618 | E11: 230 | M11: =IF(E25>0,L12*B25,) -> 1.20923913
C12: 6 (d11) | D12: =D23 -> 51.7752809 | E12: 200 | G12: i= | H12: getrieben | L12: =IF(E24>0,K13*B24,) -> 2.317708333
C13: 5 (d9) | D13: =D22 -> 86.29213483 | E13: 300 | H13: treibend | K13: =IF(E23>0,B19*B20*B21*B22*B23,) -> 4.635416667
C14: 4 (d7) | D14: =D21 -> 179.7752809 | E14: 120 | J14: =IF(E22>0,B19*B20*B21*B22,) -> 2.78125
C15: 3 (d5) | D15: =D20 -> 107.8651685 | E15: 200 | I15: =IF(E21>0,B19*B20*B21,) -> 1.335
C16: 2 (d3) | D16: =D19 -> 160 | E16: 60 | H16: =IF(E20>0,B19*B20,) -> 2.225
C17: 1 (d1) | D17: 240 | E17: 240 | G17: =IF(E19>0,E19/E17,) -> 1.5
B18: i = direkt | C18: Getriebene Scheibe | D18: Drehzahl | E18: Durchmesser
B19: =IF(E19>0,E19/E17,) -> 1.5 | C19: 1 (d2) | D19: =$D$17/B19 -> 160 | E19: 360
B20: =IF(E20>0,E20/E16,) -> 1.483333333 | C20: 2 (d4) | D20: =D16/B20 -> 107.8651685 | E20: 89
B21: =IF(E21>0,E21/E15,) -> 0.6 | C21: 3 (d6) | D21: =D15/B21 -> 179.7752809 | E21: 120
B22: =IF(E22>0,E22/E14,) -> 2.083333333 | C22: 4 (d8) | D22: =D14/B22 -> 86.29213483 | E22: 250
B23: =IF(E23>0,E23/E13,) -> 1.666666667 | C23: 5 (d10) | D23: =D13/B23 -> 51.7752809 | E23: 500
B24: =IF(E24>0,E24/E12,) -> 0.5 | C24: 6 (d12) | D24: =D12/B24 -> 103.5505618 | E24: 100
B25: =IF(E25>0,E25/E11,) -> 0.5217391304 | C25: 7 (d14) | D25: =D11/B25 -> 198.4719101 | E25: 120
B26: =IF(E26>0,E26/E10,) -> 1.2 | C26: 8 (d16) | D26: =D10/B26 -> 165.3932584 | E26: 600
B27: =IF(E27>0,E27/E9,) -> 8.75 | C27: 9 (d18) | D27: =D9/B27 -> 18.90208668 | E27: 700
B28: =IF(E28>0,E28/E8,) -> 0.8 | C28: 10 (d20) | D28: =D8/B28 -> 23.62760835 | E28: 80
C31: Übersetzungsverhältnis | G31: Gesamtübersetzungsverhältbnis i
C32: Treibende Scheibe | D32: Drehzahl | E32: Durchmesser
C33: 10 | D33: =D52 -> 0.002 | E33: 50 | P33: =IF(E53>0,B44*B45*B46*B47*B48*B49*B50*B51*B52*B53,) -> 600000
C34: 9 | D34: =D51 -> 0.009 | E34: 50 | O34: =IF(E52>0,B44*B45*B46*B47*B48*B49*B50*B51*B52,) -> 150000
C35: 8 | D35: =D50 -> 0.037 | E35: 50 | N35: =IF(E51>0,B44*B45*B46*B47*B48*B49*B50*B51,) -> 33333.33333
C36: 7 | D36: =D49 -> 0.146 | E36: 50 | M36: =IF(E50>0,B44*B45*B46*B47*B48*B49*B50,) -> 8108.108108
C37: 6 | D37: =D48 -> 0.586 | E37: 50 | G37: i= | H37: getrieben | L37: =IF(E49>0,B44*B45*B46*B47*B48*B49,) -> 2054.794521
C38: 5 | D38: =D47 -> 2.344 | E38: 50 | H38: treibend | K38: =IF(E48>0,B44*B45*B46*B47*B48,) -> 511.9453925
C39: 4 | D39: =D46 -> 9.375 | E39: 50 | J39: =IF(E47>0,B44*B45*B46*B47,) -> 127.9863481
C40: 3 (d5) | D40: =D45 -> 38 | E40: 50 | I40: =IF(E46>0,B44*B45*B46,) -> 32
C41: 2 (d3) | D41: =D44 -> 150 | E41: 50 | H41: =IF(E45>0,B44*B45,) -> 7.894736842
C42: 1 (d1) | D42: 300 | E42: 50 | G42: =IF(E44>0,E44/E42,) -> 2
B43: i = direkt | C43: Getriebene Scheibe | D43: Drehzahl | E43: Durchmesser
B44: =IF(E44>0,E44/E42,) -> 2 | C44: 1 (d2) | D44: 150 | E44: =D42*E42/D44 -> 100
B45: =IF(E45>0,E45/E41,) -> 3.947368421 | C45: 2 (d4) | D45: 38 | E45: =D41*E41/D45 -> 197.3684211
B46: =IF(E46>0,E46/E40,) -> 4.053333333 | C46: 3 (d6) | D46: 9.375 | E46: =D40*E40/D46 -> 202.6666667
B47: =IF(E47>0,E47/E39,) -> 3.999573379 | C47: 4 | D47: 2.344 | E47: =D39*E39/D47 -> 199.9786689
B48: =IF(E48>0,E48/E38,) -> 4 | C48: 5 | D48: 0.586 | E48: =D38*E38/D48 -> 200
B49: =IF(E49>0,E49/E37,) -> 4.01369863 | C49: 6 | D49: 0.146 | E49: =D37*E37/D49 -> 200.6849315
B50: =IF(E50>0,E50/E36,) -> 3.945945946 | C50: 7 | D50: 0.037 | E50: =D36*E36/D50 -> 197.2972973
B51: =IF(E51>0,E51/E35,) -> 4.111111111 | C51: 8 | D51: 0.009 | E51: =D35*E35/D51 -> 205.5555556
B52: =IF(E52>0,E52/E34,) -> 4.5 | C52: 9 | D52: 0.002 | E52: =D34*E34/D52 -> 225
B53: =IF(E53>0,E53/E33,) -> 4 | C53: 10 | D53: 0.0005 | E53: =D33*E33/D53 -> 200
